{"text_format":"1","workbook":"xlsx","n_sheets":4,"sheets":["Daily","Gantt chart","基本設定","DATA"],"not_rendered":{"charts":0,"images":1,"macros":1,"external_links":0,"defined_names":3,"comments":1,"pivot_tables":0},"unopened":[],"bounds":{"document_bytes":16777216,"sheet_cells":100000,"rows_first":2000,"rows_last":500,"rows_between":2000,"halvings":0,"cell_chars":16384,"cell_head_chars":4096},"cells_cut":0,"cells_raw":0,"read":"whole","date_system":"1900"}

{"sheet":"Daily","index":0,"n_rows":50,"n_cols":55,"rows_kept":50,"cut":false,"hidden":false,"merged":[[38,0,39,0],[40,0,41,0],[28,0,29,0],[30,0,31,0],[32,0,33,0],[34,0,35,0],[36,0,37,0],[24,0,25,0],[26,0,27,0],[23,11,24,15],[29,1,30,5],[29,6,30,10],[23,1,24,5],[23,6,24,10],[25,1,26,5],[25,6,26,10],[27,1,28,5],[27,6,28,10],[29,11,30,15],[18,0,19,0],[20,0,21,0],[14,0,15,0],[15,1,16,5],[17,1,18,5],[21,1,22,5],[19,1,20,5],[22,0,23,0],[15,6,16,10],[15,11,16,15],[35,6,36,10],[8,0,9,0],[10,0,11,0],[12,0,13,0],[7,1,8,5],[7,6,8,10],[9,1,10,5],[9,6,10,10],[11,1,12,5],[11,6,12,10],[13,6,14,10],[6,0,7,0],[16,0,17,0],[31,11,32,15],[0,1,1,2],[27,11,28,15],[13,1,14,5],[19,6,20,10],[19,11,20,15],[7,11,8,15],[9,11,10,15],[13,11,14,15],[11,11,12,15],[17,6,18,10],[17,11,18,15],[21,6,22,10],[21,11,22,15],[25,11,26,15],[6,1,6,5],[6,6,6,10],[37,6,38,10],[37,11,38,15],[39,1,40,5],[39,6,40,10],[39,11,40,15],[44,0,45,0],[46,0,47,0],[48,0,49,0],[45,1,46,5],[45,6,46,10],[43,1,44,5],[43,6,44,10],[42,0,43,0],[31,1,32,5],[31,6,32,10],[45,11,46,15],[47,1,48,5],[47,6,48,10],[47,11,48,15],[41,1,42,5],[41,6,42,10],[41,11,42,15],[43,11,44,15],[33,1,34,5],[33,6,34,10],[33,11,34,15],[35,1,36,5],[35,11,36,15],[37,1,38,5],[6,11,6,15],[13,52,13,53],[12,52,12,53],[11,52,11,53],[2,0,2,15],[3,0,3,15],[5,1,5,5],[5,6,5,10],[5,11,5,15]]}
[1,31,null,null,null,null,null,null,null,null,null,null,null,"Weather:",null,null,null,null,"Today's Goal:",null,null,null,null,null,null,null,null,null,null,null,null,null,null,null,null,null,null,null,null,null,null,null,null,null,null,null,null,"2020/1/31：Friday"]
[null,null,null,"Friday",null,null,null,null,null,null,null,null,null,null,null,null,null,null,"Want to do:",null,null,null,null,null,null,null,null,null,null,null,null,null,null,null,"重要度：高　"]
["正直は最善の策である。 - Honesty is the best policy."]
["セルバンテス - スペインの小説家『ドン・キホーテ』著者",null,null,null,null,null,null,null,null,null,null,null,null,null,null,null,null,null,null,null,null,null,null,null,null,null,null,null,null,null,null,null,null,null,null,null,null,null,null,null,null,null,null,null,null,null,null,null,null,null,null,null,"用　　紙：A5ルーズリーフ無地"]
[]
[null,"Schedule",null,null,null,null,"Logs",null,null,null,null,"MEMO",null,null,null,null,null,null,"緊急性",null,null,null,null,null,null,null,null,null,null,null,null,null,"①","②",null,null,null,null,null,null,null,null,null,null,null,null,null,"緊急性"]
[6,null,null,null,null,null,null,null,null,null,null,null,null,null,null,null,null,null,"高",null,null,null,null,null,null,null,null,null,null,null,null,null,"③","④",null,null,null,null,null,null,null,null,null,null,null,null,null,"低",null,null,null,null,"印刷向き：孔は向かって右側にセットする"]
[]
[7,null,null,null,null,null,null,null,null,null,null,null,null,null,null,null,null,null,null,null,null,null,null,null,null,null,null,null,null,null,null,null,null,null,null,null,null,null,null,null,null,null,null,null,null,null,null,null,null,null,null,null,"印　　刷：両面印刷に設定する"]
[]
[8,null,null,null,null,null,null,null,null,null,null,null,null,null,null,null,null,null,null,null,null,null,null,null,null,null,null,null,null,null,null,null,null,null,"重要度：低　"]
[null,null,null,null,null,null,null,null,null,null,null,null,null,null,null,null,null,null,null,null,null,null,null,null,null,null,null,null,null,null,null,null,null,null,null,null,null,null,null,null,null,null,null,null,null,null,null,null,null,null,null,null,2020,null,"年"]
[9,null,null,null,null,null,null,null,null,null,null,null,null,null,null,null,null,null,null,null,null,null,null,null,null,null,null,null,null,null,null,null,null,null,null,null,null,null,null,null,null,null,null,null,null,null,null,null,null,null,null,null,2,null,"月"]
[null,null,null,null,null,null,null,null,null,null,null,null,null,null,null,null,null,null,null,null,null,null,null,null,null,null,null,null,null,null,null,null,null,null,null,null,null,null,null,null,null,null,null,null,null,null,null,null,null,null,null,null,1,null,"日"]
[10]
[]
[11]
[]
[12]
[]
[13]
[]
[14]
[]
[15]
[]
[16]
[]
[17]
[]
[18]
[]
[19]
[]
[20]
[]
[21]
[]
[22]
[]
[23]
[]
[24]
[]
[25]
[null,null,null,null,null,null,null,null,null,null,null,null,null,null,null,null,null,null,null,null,null,"Check",null,null,"　☆☆☆",null,null,"→　Next Action",null,null,null,null,null,null,null,"Shopping",null,null,null,null,null,null,"Total:",null,null,null,null,"円"]
[26]
[]
[27,null,null,null,null,null,null,null,null,null,null,null,null,null,null,null,null,null,null,null,null,"　"]
[null,null,null,null,null,null,null,null,null,null,null,null,null,null,null,null,null,null,null,null,null,"MIZUKAra -自ら「未来を切り開く能力」を育む-　https://lin.ee/zFiQfrQ"]

{"sheet":"Gantt chart","index":1,"n_rows":28,"n_cols":37,"rows_kept":28,"cut":false,"hidden":false,"merged":[[1,33,2,33]]}
[]
[null,2020,1,{"$f":"C2+1","v":2},3,4,5,6,7,8,9,10,11,12,13,14,15,16,17,18,19,20,21,22,23,24,25,26,27,28,29,null,null,"MEMO"]
[null,2,{"$f":"IFERROR(VLOOKUP($B$2&\"/\"&$B$3&\"/\"&C2,DATA!$A$9:$D$34,4,0),TEXT($B$2&\"/\"&$B$3&\"/\"&C2,\"aaa\"))","v":"土"},{"$f":"IFERROR(VLOOKUP($B$2&\"/\"&$B$3&\"/\"&D2,DATA!$A$9:$D$34,4,0),TEXT($B$2&\"/\"&$B$3&\"/\"&D2,\"aaa\"))","v":"日"},{"$f":"IFERROR(VLOOKUP($B$2&\"/\"&$B$3&\"/\"&E2,DATA!$A$9:$D$34,4,0),TEXT($B$2&\"/\"&$B$3&\"/\"&E2,\"aaa\"))","v":"月"},{"$f":"IFERROR(VLOOKUP($B$2&\"/\"&$B$3&\"/\"&F2,DATA!$A$9:$D$34,4,0),TEXT($B$2&\"/\"&$B$3&\"/\"&F2,\"aaa\"))","v":"火"},{"$f":"IFERROR(VLOOKUP($B$2&\"/\"&$B$3&\"/\"&G2,DATA!$A$9:$D$34,4,0),TEXT($B$2&\"/\"&$B$3&\"/\"&G2,\"aaa\"))","v":"水"},{"$f":"IFERROR(VLOOKUP($B$2&\"/\"&$B$3&\"/\"&H2,DATA!$A$9:$D$34,4,0),TEXT($B$2&\"/\"&$B$3&\"/\"&H2,\"aaa\"))","v":"木"},{"$f":"IFERROR(VLOOKUP($B$2&\"/\"&$B$3&\"/\"&I2,DATA!$A$9:$D$34,4,0),TEXT($B$2&\"/\"&$B$3&\"/\"&I2,\"aaa\"))","v":"金"},{"$f":"IFERROR(VLOOKUP($B$2&\"/\"&$B$3&\"/\"&J2,DATA!$A$9:$D$34,4,0),TEXT($B$2&\"/\"&$B$3&\"/\"&J2,\"aaa\"))","v":"土"},{"$f":"IFERROR(VLOOKUP($B$2&\"/\"&$B$3&\"/\"&K2,DATA!$A$9:$D$34,4,0),TEXT($B$2&\"/\"&$B$3&\"/\"&K2,\"aaa\"))","v":"日"},{"$f":"IFERROR(VLOOKUP($B$2&\"/\"&$B$3&\"/\"&L2,DATA!$A$9:$D$34,4,0),TEXT($B$2&\"/\"&$B$3&\"/\"&L2,\"aaa\"))","v":"月"},"祝",{"$f":"IFERROR(VLOOKUP($B$2&\"/\"&$B$3&\"/\"&N2,DATA!$A$9:$D$34,4,0),TEXT($B$2&\"/\"&$B$3&\"/\"&N2,\"aaa\"))","v":"水"},{"$f":"IFERROR(VLOOKUP($B$2&\"/\"&$B$3&\"/\"&O2,DATA!$A$9:$D$34,4,0),TEXT($B$2&\"/\"&$B$3&\"/\"&O2,\"aaa\"))","v":"木"},{"$f":"IFERROR(VLOOKUP($B$2&\"/\"&$B$3&\"/\"&P2,DATA!$A$9:$D$34,4,0),TEXT($B$2&\"/\"&$B$3&\"/\"&P2,\"aaa\"))","v":"金"},{"$f":"IFERROR(VLOOKUP($B$2&\"/\"&$B$3&\"/\"&Q2,DATA!$A$9:$D$34,4,0),TEXT($B$2&\"/\"&$B$3&\"/\"&Q2,\"aaa\"))","v":"土"},{"$f":"IFERROR(VLOOKUP($B$2&\"/\"&$B$3&\"/\"&R2,DATA!$A$9:$D$34,4,0),TEXT($B$2&\"/\"&$B$3&\"/\"&R2,\"aaa\"))","v":"日"},{"$f":"IFERROR(VLOOKUP($B$2&\"/\"&$B$3&\"/\"&S2,DATA!$A$9:$D$34,4,0),TEXT($B$2&\"/\"&$B$3&\"/\"&S2,\"aaa\"))","v":"月"},{"$f":"IFERROR(VLOOKUP($B$2&\"/\"&$B$3&\"/\"&T2,DATA!$A$9:$D$34,4,0),TEXT($B$2&\"/\"&$B$3&\"/\"&T2,\"aaa\"))","v":"火"},{"$f":"IFERROR(VLOOKUP($B$2&\"/\"&$B$3&\"/\"&U2,DATA!$A$9:$D$34,4,0),TEXT($B$2&\"/\"&$B$3&\"/\"&U2,\"aaa\"))","v":"水"},{"$f":"IFERROR(VLOOKUP($B$2&\"/\"&$B$3&\"/\"&V2,DATA!$A$9:$D$34,4,0),TEXT($B$2&\"/\"&$B$3&\"/\"&V2,\"aaa\"))","v":"木"},{"$f":"IFERROR(VLOOKUP($B$2&\"/\"&$B$3&\"/\"&W2,DATA!$A$9:$D$34,4,0),TEXT($B$2&\"/\"&$B$3&\"/\"&W2,\"aaa\"))","v":"金"},{"$f":"IFERROR(VLOOKUP($B$2&\"/\"&$B$3&\"/\"&X2,DATA!$A$9:$D$34,4,0),TEXT($B$2&\"/\"&$B$3&\"/\"&X2,\"aaa\"))","v":"土"},"祝","振",{"$f":"IFERROR(VLOOKUP($B$2&\"/\"&$B$3&\"/\"&AA2,DATA!$A$9:$D$34,4,0),TEXT($B$2&\"/\"&$B$3&\"/\"&AA2,\"aaa\"))","v":"火"},{"$f":"IFERROR(VLOOKUP($B$2&\"/\"&$B$3&\"/\"&AB2,DATA!$A$9:$D$34,4,0),TEXT($B$2&\"/\"&$B$3&\"/\"&AB2,\"aaa\"))","v":"水"},{"$f":"IFERROR(VLOOKUP($B$2&\"/\"&$B$3&\"/\"&AC2,DATA!$A$9:$D$34,4,0),TEXT($B$2&\"/\"&$B$3&\"/\"&AC2,\"aaa\"))","v":"木"},{"$f":"IFERROR(VLOOKUP($B$2&\"/\"&$B$3&\"/\"&AD2,DATA!$A$9:$D$34,4,0),TEXT($B$2&\"/\"&$B$3&\"/\"&AD2,\"aaa\"))","v":"金"},{"$f":"IFERROR(VLOOKUP($B$2&\"/\"&$B$3&\"/\"&AE2,DATA!$A$9:$D$34,4,0),TEXT($B$2&\"/\"&$B$3&\"/\"&AE2,\"aaa\"))","v":"土"}]
[null,"Private",null,null,null,null,null,null,null,null,null,null,null,null,null,null,null,null,null,null,null,null,null,null,null,null,null,null,null,null,null,null,null,null,null,"用　　紙：A4コピー紙"]
[null,2,null,null,null,null,null,null,null,null,null,null,null,null,null,null,null,null,null,null,null,null,null,null,null,null,null,null,null,null,null,null,null,null,null,"印刷向き：孔は向かって奥側にセットする"]
[null,3,null,null,null,null,null,null,null,null,null,null,null,null,null,null,null,null,null,null,null,null,null,null,null,null,null,null,null,null,null,null,null,null,null,"印　　刷：片面印刷に設定する"]
[null,4]
[null,5,null,null,null,null,null,null,null,null,null,null,null,null,null,null,null,null,null,null,null,null,null,null,null,null,null,null,null,null,null,null,null,null,null,2020,"年"]
[null,"Project",null,null,null,null,null,null,null,null,null,null,null,null,null,null,null,null,null,null,null,null,null,null,null,null,null,null,null,null,null,null,null,null,null,2,"月"]
[null,2]
[null,3]
[null,4]
[null,5]
[null,6]
[null,7]
[null,8]
[null,9]
[null,10]
[null,11]
[null,12]
[null,13]
[null,14]
[null,15]
[null,16]
[null,17]
[null,18]
[null,19]
[null,20]

{"sheet":"基本設定","index":2,"n_rows":16,"n_cols":6,"rows_kept":16,"cut":false,"hidden":false,"merged":[[12,5,14,11],[15,5,16,11],[4,5,5,11],[6,5,7,11],[8,5,9,11]]}
[]
[null,"記念日登録"]
[null,"年月日","記念日"]
["例","2000-04-01","結婚記念日",null,"機能説明："]
[null,null,null,null,1,"このファイルはA5サイズの手帳リフィルです。1日2ページ（見開き）タイプとして設計されています。"]
[]
[null,null,null,null,2,"左の入力欄に記念日を設定するとDAILYに自動で反映されます。また年度から記念日の年数（誕生日なら年齢）が算出されます。"]
[]
[null,null,null,null,3,"世界の名言は毎年元旦分の印刷時にランダムに並び替えられて表示されます。漫画などの名言は版権などに触れないように敢えて省いています。"]
[]
[]
[null,null,null,null,"注意事項："]
[null,null,null,null,1,"このファイルはマクロを使用しています。シート内のセルを並び替えるなどの改変はプログラムに支障をきたす恐れがあるため、ブック・シート・マクロをそれぞれロックしています。ご了承ください。"]
[]
[]
[null,null,null,null,2,"このファイルはMIZUKAraの著作制作物です。広告宣伝物として配布しています。そのため下部に公式ラインのURLが添付されます。"]

{"sheet":"DATA","index":3,"n_rows":465,"n_cols":44,"rows_kept":465,"cut":false,"hidden":true,"merged":[]}
[null,null,null,null,null,null,null,null,null,null,null,"※個人用のver4.0を基に作成しています。",null,null,null,null,null,null,null,null,null,null,null,null,null,null,null,null,null,null,null,null,null,null,null,null,null,null,null,null,null,null,null,"2019/11/1：Friday"]
[]
[null,2020,"年度",null,null,"祝日"]
[null,1,"月度",null,null,"記念日"]
["開始日",1,"日"]
["閏年",{"$f":"IF(MOD(B3,4)=0,TRUE,FALSE)","v":true}]
[null,null,null,null,null,"Anniversary List",null,null,null,null,"名言"]
["↓Vlookup用文字列","↓シリアル値",null,null,null,"↓Vlookup用文字列","↓シリアル値","↓記念日",null,null,"日付","日本語","英語","作者","備考","ランダム数"]
[{"$f":"IF(B9=\"*\",\"\",YEAR(B9)&\"/\"&MONTH(B9)&\"/\"&DAY(B9))","v":"2020/1/1"},{"$f":"DATE($B$3,1,1)","v":"2020-01-01"},"元日","祝",null,{"$f":"IF(G9=\"\",\"\",MONTH(G9)&\"/\"&DAY(G9))","v":""},{"$f":"IF(基本設定!B5=\"\",\"\",基本設定!B5)","v":""},{"$f":"IF(基本設定!C5=\"\",\"\",基本設定!C5)","v":""},{"$f":"IF(OR(G9=\"\",G9>TODAY()),\"\",DATEDIF(G9,$B$3&\"/12/31\",\"y\"))","v":""},null,"1/1","時間は飛び去り、二度と戻らない。","Time is flying never to return.","ウェルギリウス","アメリカの女優",{"$f":"RAND()","v":0.23333362601632679}]
["",{"$f":"IF(WEEKDAY(B9)=1,B9+1,\"*\")","v":"*"},"振替休日","振",null,"",{"$f":"IF(基本設定!B6=\"\",\"\",基本設定!B6)","v":""},{"$f":"IF(基本設定!C6=\"\",\"\",基本設定!C6)","v":""},"",null,"1/2","人生は人はこのマッチ箱に似ている。重大に扱うのはばかばかしい。重大に扱わねば危険である。",null,"芥川龍之介","日本の小説家",0.8146180550106954]
["2020/1/13",{"$f":"DATE(B3,1,14-WEEKDAY(DATE(B3,1,0),3))","v":"2020-01-13"},"成人の日","祝",null,"",{"$f":"IF(基本設定!B7=\"\",\"\",基本設定!B7)","v":""},{"$f":"IF(基本設定!C7=\"\",\"\",基本設定!C7)","v":""},"",null,"1/3","ひょろガリも筋肉バカもいろんなやつがいる。イコール強さだ",null,"石神千空","Dr.STONE",0.60901122871768609]
["2020/2/11",{"$f":"DATE($B$3,2,11)","v":"2020-02-11"},"建国記念の日","祝",null,"",{"$f":"IF(基本設定!B8=\"\",\"\",基本設定!B8)","v":""},{"$f":"IF(基本設定!C8=\"\",\"\",基本設定!C8)","v":""},"",null,"1/4","夢を持つと言う事は、同時に現実と闘う事になるのを覚悟すること。",null,"ばんえい競馬場の獣医さん","荒川弘『銀の匙 Silver Spoon』",0.89862837437974841]
["",{"$f":"IF(WEEKDAY(B12)=1,B12+1,\"*\")","v":"*"},"振替休日","振",null,"",{"$f":"IF(基本設定!B9=\"\",\"\",基本設定!B9)","v":""},{"$f":"IF(基本設定!C9=\"\",\"\",基本設定!C9)","v":""},"",null,"1/5","成功が上がりでもなければ、失敗が終わりでもない。肝心なのは続ける勇気である。",null,"ウィンストン・チャーチル","イギリスの政治家",0.64488799905383798]
["2020/2/23",{"$f":"DATE(B3,2,23)","v":"2020-02-23"},"天皇誕生日","祝",null,"",{"$f":"IF(基本設定!B10=\"\",\"\",基本設定!B10)","v":""},{"$f":"IF(基本設定!C10=\"\",\"\",基本設定!C10)","v":""},"",null,"1/6","私の歩みは遅いが、歩んだ道を引き返すことはない。","I walk slowly, but I never walk backward.","エイブラハム・リンカーン","アメリカの第16代大統領",0.13908548122664832]
["2020/2/24",{"$f":"IF(WEEKDAY(B14)=1,B14+1,\"*\")","v":"2020-02-24"},"振替休日","振",null,"",{"$f":"IF(基本設定!B11=\"\",\"\",基本設定!B11)","v":""},{"$f":"IF(基本設定!C11=\"\",\"\",基本設定!C11)","v":""},"",null,"1/7","空が曇っているときは、雲が横切っているだけなんだよ。","Gray skies are just clouds passing over.","デューク・エリントン","アメリカのジャズオーケストラリーダー",0.25036124420206218]
["2020/3/20",{"$f":"DATE(B3,3,INT(20.8431+0.242194*(B3-1980)-INT((B3-1980)/4)))","v":"2020-03-20"},"春分の日","祝",null,"",{"$f":"IF(基本設定!B12=\"\",\"\",基本設定!B12)","v":""},{"$f":"IF(基本設定!C12=\"\",\"\",基本設定!C12)","v":""},"",null,"1/8","夢を見るから、人生は輝く。",null,"モーツァルト","オーストリアの作曲家、演奏家",0.28053725748510983]
["",{"$f":"IF(WEEKDAY(B16)=1,B16+1,\"*\")","v":"*"},"振替休日","振",null,"",{"$f":"IF(基本設定!B13=\"\",\"\",基本設定!B13)","v":""},{"$f":"IF(基本設定!C13=\"\",\"\",基本設定!C13)","v":""},"",null,"1/9","柔軟性を持っている者は、いくら年をとっても若い者だ",null,"ユダヤのことわざ",null,0.17339646662853703]
["2020/4/29",{"$f":"DATE($B$3,4,29)","v":"2020-04-29"},"昭和の日","祝",null,"",{"$f":"IF(基本設定!B14=\"\",\"\",基本設定!B14)","v":""},{"$f":"IF(基本設定!C14=\"\",\"\",基本設定!C14)","v":""},"",null,"1/10","天才とは、1％のひらめきと99％の努力である","Genius is 1 percent inspiration and 99 percent perspiration.","トーマス・エジソン","アメリカの発明家",0.20423731972993675]
["",{"$f":"IF(WEEKDAY(B18)=1,B18+1,\"*\")","v":"*"},"振替休日","振",null,"",{"$f":"IF(基本設定!B15=\"\",\"\",基本設定!B15)","v":""},{"$f":"IF(基本設定!C15=\"\",\"\",基本設定!C15)","v":""},"",null,"1/11","あやまちの背後にはたいてい恐れが隠れている。","Mistakes are usually based in fear.","スザンヌ・サマーズ","アメリカの女優",0.72884931100328909]
["2020/5/3",{"$f":"DATE($B$3,5,3)","v":"2020-05-03"},"憲法記念日","祝",null,"",{"$f":"IF(基本設定!B16=\"\",\"\",基本設定!B16)","v":""},{"$f":"IF(基本設定!C16=\"\",\"\",基本設定!C16)","v":""},null,null,"1/12","行く手をふさがれたら、回り道で行けばいい。","When you come to a roadblock, take a detour.","メアリー・ケイ・アッシュ","アメリカの化粧品会社創業者",7.7092223823362893E-3]
["2020/5/4",{"$f":"DATE($B$3,5,4)","v":"2020-05-04"},"みどりの日","祝",null,"",{"$f":"IF(基本設定!B17=\"\",\"\",基本設定!B17)","v":""},{"$f":"IF(基本設定!C17=\"\",\"\",基本設定!C17)","v":""},null,null,"1/13","ルールに縛られた人生に 興味などないわ！！",null,"南九条あやめ","荒川弘『銀の匙 Silver Spoon』",0.81258016163499491]
["2020/5/5",{"$f":"DATE($B$3,5,5)","v":"2020-05-05"},"こどもの日","祝",null,"",{"$f":"IF(基本設定!B18=\"\",\"\",基本設定!B18)","v":""},{"$f":"IF(基本設定!C18=\"\",\"\",基本設定!C18)","v":""},null,null,"1/14","涙を流すことを恥と思う必要はまったくない。","We need never be ashamed of our tears.","チャールズ・ディケンズ","イギリスの小説家",0.85106443906521334]
["2020/5/6",{"$f":"IF(WEEKDAY(B22)<=3,B22+1,\"\")","v":"2020-05-06"},"振替休日","振",null,"",{"$f":"IF(基本設定!B19=\"\",\"\",基本設定!B19)","v":""},{"$f":"IF(基本設定!C19=\"\",\"\",基本設定!C19)","v":""},{"$f":"IF(OR(G23=\"\",G23>TODAY()),\"\",DATEDIF(G23,$B$3&\"/12/31\",\"y\"))","v":""},null,"1/15","そのうち　そのうち　べんかいしながら日がくれる",null,"相田みつを","日本の詩人、書家",0.63578000441347782]
["2020/7/20",{"$f":"DATE($B$3,7,21-WEEKDAY(DATE($B$3,7,0),3))","v":"2020-07-20"},"海の日","祝",null,"",{"$f":"IF(基本設定!B20=\"\",\"\",基本設定!B20)","v":""},{"$f":"IF(基本設定!C20=\"\",\"\",基本設定!C20)","v":""},null,null,"1/16","考えるな、感じろ。","Don’t think, feel.","ブルース・リー","香港の中国武術家、俳優",0.73786327853798206]
["2020/8/10",{"$f":"IF(OR(B3=2020,B3=2021),E25,DATE($B$3,8,11-WEEKDAY(DATE($B$3,7,0),3)))","v":"2020-08-10"},"山の日","祝",{"$f":"DATE($B$3,8,10)","v":"2020-08-10"},null,null,null,null,null,"1/17","人生について書きたいなら、まず生きなくてはならない",null,"ヘミングウェイ","アメリカの小説家",0.26380688757191939]
["",{"$f":"IF(WEEKDAY(B25)=1,B25+1,\"*\")","v":"*"},"振替休日","振",null,null,null,null,null,null,"1/18","緊張してきた。よっしゃあ！！",null,"松岡修造","日本の元プロテニスプレーヤー",0.21524887554882077]
["2020/9/21",{"$f":"DATE($B$3,9,21-WEEKDAY(DATE($B$3,9,0),3))","v":"2020-09-21"},"敬老の日","祝",null,{"$f":"IF(G27=\"\",\"\",MONTH(G27)&\"/\"&DAY(G27))","v":""},{"$f":"IF(基本設定!B21=\"\",\"\",基本設定!B21)","v":""},{"$f":"IF(基本設定!C21=\"\",\"\",基本設定!C21)","v":""},{"$f":"IF(OR(G27=\"\",G27>TODAY()),\"\",DATEDIF(G27,$B$3&\"/12/31\",\"y\"))","v":""},null,"1/19","計画のない目標は、ただの願い事にすぎない。","A goal without a plan is just a wish.","サン＝テグジュペリ","フランスの作家",0.56825159812922066]
["2020/9/22",{"$f":"DATE($B$3,9,INT(23.2488+0.242194*($B$3-1980)-INT(($B$3-1980)/4)))","v":"2020-09-22"},"秋分の日","祝",null,"",{"$f":"IF(基本設定!B22=\"\",\"\",基本設定!B22)","v":""},{"$f":"IF(基本設定!C22=\"\",\"\",基本設定!C22)","v":""},"",null,"1/20","自分ならできると信じれば、もう半分は終わったようなものだ。","Believe you can and you’re halfway there.","セオドア・ルーズベルト","アメリカの第26代大統領",0.61671202911102496]
["",{"$f":"IF(WEEKDAY(B28)=1,B28+1,\"*\")","v":"*"},"振替休日","振",null,"",{"$f":"IF(基本設定!B23=\"\",\"\",基本設定!B23)","v":""},{"$f":"IF(基本設定!C23=\"\",\"\",基本設定!C23)","v":""},"",null,"1/21","自分を信じない奴なんかに 努力する価値はない!!!",null,"マイト・ガイ","岸本斉史『NARUTO -ナルト-』",9.6562738221553368E-2]
["2020/7/23",{"$f":"IF(OR(B3=2020,B3=2021),E30,DATE($B$3,10,14-WEEKDAY(DATE($B$3,10,0),3)))","v":"2020-07-23"},"スポーツの日","祝",{"$f":"DATE($B$3,7,23)","v":"2020-07-23"},"",{"$f":"IF(基本設定!B24=\"\",\"\",基本設定!B24)","v":""},{"$f":"IF(基本設定!C24=\"\",\"\",基本設定!C24)","v":""},"",null,"1/22","事を成し遂げる者は愚直でなければならぬ。才走ってはうまくいかない。",null,"勝海舟","明治初期の武士",0.52609832574740378]
["2020/11/3",{"$f":"DATE($B$3,11,3)","v":"2020-11-03"},"文化の日","祝",null,"",{"$f":"IF(基本設定!B25=\"\",\"\",基本設定!B25)","v":""},{"$f":"IF(基本設定!C25=\"\",\"\",基本設定!C25)","v":""},"",null,"1/23","私は捜し求めない。見出すのだ。","I do not seek, I find.","パブロ・ピカソ","スペイン出身の画家、彫刻家",0.11288036469972518]
["",{"$f":"IF(WEEKDAY(B31)=1,B31+1,\"*\")","v":"*"},"振替休日","振",null,"",{"$f":"IF(基本設定!B26=\"\",\"\",基本設定!B26)","v":""},{"$f":"IF(基本設定!C26=\"\",\"\",基本設定!C26)","v":""},"",null,"1/24","困難の中に、機会がある。","In the middle of difficulty lies opportunity.","アインシュタイン","理論物理学者",0.7858901255576749]
["2020/11/23",{"$f":"DATE($B$3,11,23)","v":"2020-11-23"},"勤労感謝の日","祝",null,"",{"$f":"IF(基本設定!B27=\"\",\"\",基本設定!B27)","v":""},{"$f":"IF(基本設定!C27=\"\",\"\",基本設定!C27)","v":""},"",null,"1/25","幸せを言葉で語ると幸せを減らしてしまう。","To describe happiness is to diminish it.","スタンダール","フランスの小説家『赤と黒』著者",0.90655624408202118]
["",{"$f":"IF(WEEKDAY(B33)=1,B33+1,\"*\")","v":"*"},"振替休日","振",null,"",{"$f":"IF(基本設定!B28=\"\",\"\",基本設定!B28)","v":""},{"$f":"IF(基本設定!C28=\"\",\"\",基本設定!C28)","v":""},"",null,"1/26","我が生涯に一片の悔いなし!!",null,"ラオウ","原哲夫『北斗の拳』",0.40984743283504155]
[null,null,null,null,null,"",{"$f":"IF(基本設定!B29=\"\",\"\",基本設定!B29)","v":""},{"$f":"IF(基本設定!C29=\"\",\"\",基本設定!C29)","v":""},"",null,"1/27","知識は力なり。","Knowledge is power.","フランシス・ベーコン","イギリスの哲学者",0.61187997991883025]
[null,null,null,null,null,"",{"$f":"IF(基本設定!B30=\"\",\"\",基本設定!B30)","v":""},{"$f":"IF(基本設定!C30=\"\",\"\",基本設定!C30)","v":""},"",null,"1/28","悩みはなくならない。ただ悩みの中身が変わるだけ",null,"ロバート・J・ハヴィガースト","アメリカの教育学者",0.25457298852429799]
[null,null,null,null,null,"",{"$f":"IF(基本設定!B31=\"\",\"\",基本設定!B31)","v":""},{"$f":"IF(基本設定!C31=\"\",\"\",基本設定!C31)","v":""},"",null,"1/29","明日死ぬかのように生きよ。永遠に生きるかのように学べ",null,"ガンジー","インドの弁護士、宗教家、政治指導者",0.58081176131218271]
[null,null,null,null,null,"",{"$f":"IF(基本設定!B32=\"\",\"\",基本設定!B32)","v":""},{"$f":"IF(基本設定!C32=\"\",\"\",基本設定!C32)","v":""},"",null,"1/30","踏み出せば、その一足が道となる。",null,"アントニオ猪木","日本の元プロレスラー",0.46697428385131612]
[null,null,null,null,null,"",{"$f":"IF(基本設定!B33=\"\",\"\",基本設定!B33)","v":""},{"$f":"IF(基本設定!C33=\"\",\"\",基本設定!C33)","v":""},"",null,"1/31","私が最も恐れるものこそ、恐れである。","The thing I fear most is fear.","モンテーニュ","フランスの哲学者",0.63043216959089976]
[null,null,null,null,null,"",{"$f":"IF(基本設定!B34=\"\",\"\",基本設定!B34)","v":""},{"$f":"IF(基本設定!C34=\"\",\"\",基本設定!C34)","v":""},"",null,"2/1","学問は米をつきながらも出来るものなり。",null,"福沢諭吉","幕末から明治初期の中津藩士、啓蒙思想家、教育者",0.96890905659349347]
[null,null,null,null,null,null,null,null,null,null,"2/2","人は成功に向かってつまずく。","People fall forward to success.","メアリー・ケイ・アッシュ","アメリカの化粧品会社創業者",0.93657397762131833]
[null,null,null,null,null,null,null,null,null,null,"2/3","おれがなるって決めたんだから　その為に戦って死ぬんなら別にいい",null,"モンキー・D・ルフィ","尾田栄一郎『ONE PIECE』",0.7212065272875301]
[null,null,null,null,null,null,null,null,null,null,"2/4","希望を持たずに生きることは、死ぬことに等しい。","To live without Hope is to Cease to live.","ドストエフスキー","ロシアの小説家、思想家",0.97775141938781895]
[null,null,null,null,null,null,null,null,null,null,"2/5","待ちさえすれば、なんでもやってくるのだ。","Everything comes if a man will only wait.","ベンジャミン・ディズレーリ","イギリスの政治家、小説家",0.28854537478299569]
[null,null,null,null,null,null,null,null,null,null,"2/6","人生は勝ち負けじゃない 負けたって言わない人が勝ちなのよ",null,"坂本金八","3年Ｂ組金八先生",0.78815606053277865]
[null,null,null,null,null,null,null,null,null,null,"2/7","国王であれ、農民で在れ、家庭に平和を見出せる者が最も幸せである。",null,"ゲーテ","ドイツの詩人",0.21631373933261067]
[null,null,null,null,null,null,null,null,null,null,"2/8","おれは助けてもらわねェと生きていけねェ自信がある！！！",null,"モンキー・D・ルフィ","尾田栄一郎『ONE PIECE』",6.5884476377249035E-2]
[null,null,null,null,null,null,null,null,null,null,"2/9","志定まれば、気盛んなり。",null,"吉田松陰","幕末の長州藩士",0.93531518754381293]
[null,null,null,null,null,null,null,null,null,null,"2/10","つまらない生き方をするには、人生は短すぎる。","Life is too short to be little.","ベンジャミン・ディズレーリ","イギリスの政治家",0.26603194462935631]
[null,null,null,null,null,null,null,null,null,null,"2/11","愛さなければ、愛し方を学べない。","We can only learn to love by loving.","アイリス・マードック","アイルランドの女性作家",0.6938500484190131]
[null,null,null,null,null,null,null,null,null,null,"2/12","愛の第一の義務は、耳を傾けることである。","The first duty of love is to listen.","パウル・ティリッヒ","ドイツのプロテスタント神学者",0.65631711690669303]
[null,null,null,null,null,null,null,null,null,null,"2/13","凧が一番高く上がるのは、風に向かっている時である。","Kites rise highest against the wind – not with it.","ウィンストン・チャーチル","イギリスの政治家",0.36831092468476012]
[null,null,null,null,null,null,null,null,null,null,"2/14","お金を手にする前にお金を使うな。","Never spend your money before you have earned it.","トーマス・ジェファーソン","アメリカの第3代大統領",1.1928009535007944E-2]
[null,null,null,null,null,null,null,null,null,null,"2/15","孤独は優れた精神の持ち主の運命である。","To live alone is the fate of all great souls.","ショーペンハウアー","ドイツの哲学者",0.41358924149540488]
[null,null,null,null,null,null,null,null,null,null,"2/16","私は、自分がこれまでに読んだすべてのものの一部である。","I am a part of everything that I have read.","セオドア・ルーズベルト","アメリカの第26代大統領",8.6401938056805849E-2]
[null,null,null,null,null,null,null,null,null,null,"2/17","立って歩け　前へ進め　あんたには立派な足がついてるじゃないか ",null,"エドワード・エルリック","荒川弘『鋼の錬金術師』",0.42959259721278564]
[null,null,null,null,null,null,null,null,null,null,"2/18","事実は小説より奇なり。","Truth is always strange, stranger than fiction.","バイロン","イギリスの詩人",0.14238020158841458]
[null,null,null,null,null,null,null,null,null,null,"2/19","人生の唯一の意義は、人のために生きることである。","The sole meaning of life is to serve humanity.","トルストイ","ロシアの小説家、思想家",5.5801686317857868E-3]
[null,null,null,null,null,null,null,null,null,null,"2/20","事を成さんとすれば、知と勇と仁を蓄えねばならぬ。",null,"坂本龍馬","幕末の志士、土佐藩郷士",0.8961044153656007]
[null,null,null,null,null,null,null,null,null,null,"2/21","人は女に生まれるのではない、女になるのだ。","One is not born, but rather becomes, a woman.","ボーヴォワール","フランスの女性作家、哲学者",0.86585866418413249]
[null,null,null,null,null,null,null,null,null,null,"2/22","主人は無理をいうなるものと知れ。",null,"豊臣秀吉","戦国時代の武将",0.12441388237841233]
[null,null,null,null,null,null,null,null,null,null,"2/23","変革せよ。変革を迫られる前に。","Change before you have to.","ジャック・ウェルチ","アメリカの経営者",0.98028899748275133]
[null,null,null,null,null,null,null,null,null,null,"2/24","私を会員にするようなクラブには入りたくない。","I’d never join a club that would allow a person like me to become a member.","ウディ・アレン","アメリカの映画監督",0.80990460160137812]
[null,null,null,null,null,null,null,null,null,null,"2/25","投票は銃弾よりも強い。","The ballot is stronger than the bullet.","エイブラハム・リンカーン","アメリカの第16代大統領",0.71461552626602731]
[null,null,null,null,null,null,null,null,null,null,"2/26","想像力のない奴に、翼は持てない。","The man who has no imagination has no wings.","モハメド・アリ","モハメド・アリ",0.28551589643459618]
[null,null,null,null,null,null,null,null,null,null,"2/27","不幸なときにこそ、人は道徳的になる。","We become moral when we are unhappy.","マルセル・プルースト","フランスの作家",0.1088322992700913]
[null,null,null,null,null,null,null,null,null,null,"2/28","希望をもって忙しく。","Hope and keep busy.","ルイーザ・メイ・オルコット","アメリカの女性小説家",0.75860472317688743]
[null,null,null,null,null,null,null,null,null,null,"2/29","苦痛は短く、喜びは永遠である。","Pain is short, and joy is eternal.","シラー","ドイツの詩人、歴史学者",0.19361812278373214]
[null,null,null,null,null,null,null,null,null,null,"3/1","元気が一番、元気があれば何でもできる！",null,"アントニオ猪木","日本の元プロレスラー",0.19467027038068652]
[null,null,null,null,null,null,null,null,null,null,"3/2","美は魂を覚醒させ行動を起こさせる。","Beauty awakens the soul to act.","ダンテ","イタリアの詩人、哲学者、政治家 ",0.50049962996321173]
[null,null,null,null,null,null,null,null,null,null,"3/3","汝自身より優れた忠告を言うものなし。","Nobody can give you wiser advice than yourself.","キケロ","共和政ローマの政治家",0.70931778055255179]
[null,null,null,null,null,null,null,null,null,null,"3/4","あなたを心配させるものが、あなたを支配する。","What worries you, masters you.","ジョン・ロック","イギリスの哲学者",0.79450638130023399]
[null,null,null,null,null,null,null,null,null,null,"3/5","あなたの人生をかわりに生きてくれる人はいないわ。","Nobody’s gonna live for you.","ドリー・パートン","アメリカのシンガーソングライター",{"$f":"RAND()","v":0.80148229151642625}]
[null,null,null,null,null,null,null,null,null,null,"3/6","何かを得るには、心の中でそれを思うことから始まる。","The possession of anything begins in the mind.","ブルース・リー","香港の中国武術家",0.1609895952066267]
[null,null,null,null,null,null,null,null,null,null,"3/7","人は「良い物」を買うんじゃない、「皆が知っている物」を買うんだ",null,"堀井健史","堀江貴文『拝金』",0.1841904184750085]
[null,null,null,null,null,null,null,null,null,null,"3/8","すべての世代が新たな革命を必要としている。","Every generation needs a new revolution.","トーマス・ジェファーソン","アメリカの第3代大統領",0.43593790318850811]
[null,null,null,null,null,null,null,null,null,null,"3/9","濡れている者は雨を恐れない。裸の者は盗賊を恐れない。",null,"ロシアのことわざ",null,0.48182266098533233]
[null,null,null,null,null,null,null,null,null,null,"3/10","危険を冒せ。人生はすべてチャンスだ。一番遠くまでたどり着く者は大胆に行動する意欲のある人だ",null,"デール・カーネギー","アメリカの実業家",0.96836383382177038]
[null,null,null,null,null,null,null,null,null,null,"3/11","伸びる時には必ず抵抗がある。",null,"本田宗一郎","日本の実業家",0.21959426578696306]
[null,null,null,null,null,null,null,null,null,null,"3/12","苦あれば楽あり、楽あれば苦あり",null,"日本のことわざ",null,7.3731875121302415E-2]
[null,null,null,null,null,null,null,null,null,null,"3/13","楽しまなければ馬鹿らしい。",null,"平岩弓枝","女性脚本家",0.66315685951477632]
[null,null,null,null,null,null,null,null,null,null,"3/14","世間から良く思われる事よりも自分が心からやりたい事を見つけ出す事。そして自分らしく生きていく事の方がずっと大切であるという事。",null,"斎藤茂太","精神科医・随筆家",0.72636163789614527]
[null,null,null,null,null,null,null,null,null,null,"3/15","満たされない成功は、失敗だ。","Success without fulfillment is failure.","アンソニー・ロビンズ","アメリカの自己啓発書作家",0.99714291623373508]
[null,null,null,null,null,null,null,null,null,null,"3/16","長所は必ず、短所を伴う。",null,"マキャヴェッリ","イタリアの政治思想家",0.97809586138834481]
[null,null,null,null,null,null,null,null,null,null,"3/17","速度を上げるばかりが、人生ではない。","There is more to life than increasing its speed.","ガンジー","インドの弁護士、宗教家、政治指導者",0.16714319480877715]
[null,null,null,null,null,null,null,null,null,null,"3/18","蝶はモグラではない。しかしその事を残念がる蝶はいないだろう。",null,"アインシュタイン","理論物理学者",0.66366061368881613]
[null,null,null,null,null,null,null,null,null,null,"3/19","コンプレックス持ってる奴は　強いぜ",null,"達海猛","ツジトモ『Giant Killing』",0.77692092809653068]
[null,null,null,null,null,null,null,null,null,null,"3/20","最後まで…希望を捨てちゃいかん あきらめたらそこで試合終了だよ",null,"安西監督","井上雄彦『SLAM DUNK』",0.97894072991567005]
[null,null,null,null,null,null,null,null,null,null,"3/21","学問なき経験は、敬虔な気学問に勝る。",null,"イギリスのことわざ",null,0.72539952394696261]
[null,null,null,null,null,null,null,null,null,null,"3/22","成功の80%は、その場に現れること。","Eighty percent of success is showing up.","ウディ・アレン","アメリカの映画監督",0.73389615388027218]
[null,null,null,null,null,null,null,null,null,null,"3/23","好奇心はいつだって、新しい道を教えてくれる。",null,"ウォルト・ディズニー","アメリカのエンターテイナー",0.18361906551648899]
[null,null,null,null,null,null,null,null,null,null,"3/24","運がいい人も運が悪い人もいない。運がいいと思う人と運が悪いと思う人がいるだけだ。",null,"中谷彰宏","日本の作家・俳優",0.21325490104353928]
[null,null,null,null,null,null,null,null,null,null,"3/25","真実を愛せ。ただし過ちは許せ。","Love truth, but pardon error.","ヴォルテール","フランスの哲学者",0.10527423564121086]
[null,null,null,null,null,null,null,null,null,null,"3/26","幸せになることに躊躇してはいけない。",null,"ジョン・レノン","イギリスのミュージシャン",0.91974914022220744]
[null,null,null,null,null,null,null,null,null,null,"3/27","いちばんみじめで苦しい時にニヤッと笑う…そこが男よ!!",null,"伊吹一番","島本和彦『炎の転校生』",0.68127549743260285]
[null,null,null,null,null,null,null,null,null,null,"3/28","急がずに、だが休まずに。","Without haste, but without rest.","ゲーテ","ドイツの詩人、小説家、劇作家",0.84154410101423371]
[null,null,null,null,null,null,null,null,null,null,"3/29","昨日を捨てよ。",null,"ピーター・ドラッカー","オーストリア出身の経営学者",0.27222965542117517]
[null,null,null,null,null,null,null,null,null,null,"3/30","人生の目的は行為にして、思想にあらず。","The end of man is an action, and not a thought.","トーマス・カーライル","イギリスの思想家、歴史家",0.95932189864406059]
[null,null,null,null,null,null,null,null,null,null,"3/31","死ぬよりも苦しむほうが勇気を必要とする。","It requires more courage to suffer than to die.","ナポレオン・ボナパルト","フランスの皇帝",0.72378812807833992]
[null,null,null,null,null,null,null,null,null,null,"4/1","ちょっとだけ　無理なことに挑戦してこーぜ",null,"南波六太","小山宙哉『宇宙兄弟』",0.38824958462972547]
[null,null,null,null,null,null,null,null,null,null,"4/2","一位と最下位との差なんて大したことねーんだよ ゴールすることとしないことの差に比べりゃ",null,"南波六太","小山宙哉『宇宙兄弟』",0.77138492863854979]
[null,null,null,null,null,null,null,null,null,null,"4/3","この瞬間は永遠なんだ",null,"ブラック・ジャック","手塚治虫『BLACK JACK』",0.22410256691390118]
[null,null,null,null,null,null,null,null,null,null,"4/4","私は人生の岐路に立った時、いつも困難な方の道を選んできた。",null,"岡本太郎","日本の芸術家",0.7938189365729369]
[null,null,null,null,null,null,null,null,null,null,"4/5","今日という一日は、明日という日の二日分の値打ちがある。","One today is worth two tomorrow.","ベンジャミン・フランクリン","アメリカの政治家",0.3983332663373732]
[null,null,null,null,null,null,null,null,null,null,"4/6","「もうダメ」ではなく、「まだダメ」なのだ。",null,"野村克也","日本の元プロ野球選手",1.1906860139430209E-2]
[null,null,null,null,null,null,null,null,null,null,"4/7","現在から、未来は生まれ落ちる。",null,"ヴォルテール","フランスの哲学者",0.50420517781663476]
[null,null,null,null,null,null,null,null,null,null,"4/8","他人にやらされてた練習を努力とは言わねぇだろ。",null,"茂野吾郎","満田拓也『MAJOR』",0.68792909961387294]
[null,null,null,null,null,null,null,null,null,null,"4/9","上を見続ける… それが生きるコツさ…","Keep looking up.. That’s the secret of life..","スヌーピー","チャールズ・M・シュルツ『スヌーピー』",0.79426994333182432]
[null,null,null,null,null,null,null,null,null,null,"4/10","一人の命はその者一人分の価値しか無くそれ以上にもそれ以下にもならん",null,"キング・ブラッドレイ大総統","荒川弘『鋼の錬金術師』",0.26352697724967844]
[null,null,null,null,null,null,null,null,null,null,"4/11","人の世に失敗ちゅうことは、ありゃせんぞ。",null,"坂本龍馬","幕末の志士、土佐藩郷士",0.20713678012209746]
[null,null,null,null,null,null,null,null,null,null,"4/12","自分の欠点を直視し認めることです。",null,"ヘレン・ケラー","アメリカの教育課",0.43728137608648754]
[null,null,null,null,null,null,null,null,null,null,"4/13","人生の目標を教えてくれるのは直感だけ。ただ、それに耳を傾けない人が多すぎるるのです。",null,"バーバラ・ブラハム","アメリカのビジネスコンサルタント",0.98862359937098765]
[null,null,null,null,null,null,null,null,null,null,"4/14","終わったものはくよくよ考えても仕方ないから。",null,"羽生善治","日本の将棋棋士",0.64311581110721194]
[null,null,null,null,null,null,null,null,null,null,"4/15","人のミスを 願うようでは まだまだ・・・",null,"中島美雪","荒川弘『銀の匙 Silver Spoon』",5.722445652458652E-2]
[null,null,null,null,null,null,null,null,null,null,"4/16","私はいったい誰か？　ああ、それは大いなる謎だ。","Who in the world am I? Ah, that’s the great puzzle!","ルイス・キャロル","イギリスの作家『不思議の国のアリス』著者",0.91552242845048226]
[null,null,null,null,null,null,null,null,null,null,"4/17","生きるために食べよ、食べるために生きるな。","Thou shouldst eat to live; not live to eat.","ソクラテス","古代ギリシアの哲学者",0.93184841582794486]
[null,null,null,null,null,null,null,null,null,null,"4/18","自分の夢に向かって確信をもって歩み、自分が思い描く人生を送ろうと努めるなら、きっと思いがけない成功に巡り合うだろう。",null,"ソロー","アメリカの作家",0.11788984646241929]
[null,null,null,null,null,null,null,null,null,null,"4/19","人間は、その想像力によって支配される。","The humanrace is governed by its imagination.","ナポレオン・ボナパルト","フランスの皇帝",0.56112766609072784]
[null,null,null,null,null,null,null,null,null,null,"4/20","予想外の人生になっても、その時幸せだったらいいんじゃないかな。",null,"松岡修造","日本の元プロテニスプレーヤー",0.70705212109508708]
[null,null,null,null,null,null,null,null,null,null,"4/21","未来を予測する最良の方法は、未来を創ることだ。","The best way to predict the future is to create it.","ピーター・ドラッカー","オーストリア出身の経営学者",0.20831072065840639]
[null,null,null,null,null,null,null,null,null,null,"4/22","困難とは、ベストを尽くせるチャンスなのだ。","A problem is a chance for you to do your best.","デューク・エリントン","アメリカのジャズオーケストラリーダー",0.48118643811780515]
[null,null,null,null,null,null,null,null,null,null,"4/23","わたしの健康を祝して乾杯してくれ！",null,"パブロ・ピカソ","スペイン出身の画家、彫刻家",0.24908007259847864]
[null,null,null,null,null,null,null,null,null,null,"4/24","何でも謝って済むことではないけれど 謝れない人間は最低だ",null,"坂本金八","3年Ｂ組金八先生",0.23624526892419084]
[null,null,null,null,null,null,null,null,null,null,"4/25","火をおこすには火打ち石が二つ必要だ。","It takes two flints to make a fire.","ルイーザ・メイ・オルコット","アメリカの女性小説家",2.0460210934668432E-2]
[null,null,null,null,null,null,null,null,null,null,"4/26","音楽とは、世界がその歌詞であるような旋律である。","Music is the melody whose text is the world.","ショーペンハウアー","ドイツの哲学者",0.63557989794709868]
[null,null,null,null,null,null,null,null,null,null,"4/27","汝の心に教えよ、心に学ぶな。",null,"トルストイ","ロシアの小説家、思想家",0.18863138699796744]
[null,null,null,null,null,null,null,null,null,null,"4/28","疑いは知のはじまりである。","Doubt is the origin of wisdom.","デカルト","フランスの哲学者、数学者",0.53034006624504904]
[null,null,null,null,null,null,null,null,null,null,"4/29","人はみな唯一無二の異形さ！",null,"薬師丸法山","夢枕獏×伊藤勢『荒野に獣慟哭す』",0.74435191713283422]
[null,null,null,null,null,null,null,null,null,null,"4/30","音楽が僕の宗教だ。","Music is my religion.","ジミ・ヘンドリックス","アメリカのギタリスト",0.74456633393877569]
[null,null,null,null,null,null,null,null,null,null,"5/1","失敗は大成功への足がかり。","Failure is another stepping stone to greatness.","オプラ・ウィンフリー","アメリカの女性テレビ司会者",0.30038142221862285]
[null,null,null,null,null,null,null,null,null,null,"5/2","吐いた唾は飲めんぞ！",null,"薬師丸法山","夢枕獏×伊藤勢『荒野に獣慟哭す』",0.47392592082353147]
[null,null,null,null,null,null,null,null,null,null,"5/3","できるかできないかじゃねえよ。男なら、やるかやらねえかのどっちかしかねえだろが。",null,"茂野吾郎","満田拓也『MAJOR』",0.41941202751873508]
[null,null,null,null,null,null,null,null,null,null,"5/4","何を言われてもイライラしなーい。",null,"松岡修造","日本の元プロテニスプレーヤー",0.71668241320887238]
[null,null,null,null,null,null,null,null,null,null,"5/5","この世界は、我々の想像力を描くためのキャンバスにすぎない。","This world is but a canvas to our imaginations.","ソロー","アメリカの作家、詩人、思想家",0.3490484156010023]
[null,null,null,null,null,null,null,null,null,null,"5/6","さあ、俺も立ち上がるかな。まあ、もう少し座って居よう。",null,"武者小路宗篤","日本の小説家",0.26417167882659398]
[null,null,null,null,null,null,null,null,null,null,"5/7","今日も、生涯の一日なり。",null,"福沢諭吉","幕末から明治初期の中津藩士、啓蒙思想家、教育者",0.8303604031908195]
[null,null,null,null,null,null,null,null,null,null,"5/8","目はどうして前についていると思う？　前向きに進んで行くためだよ。",null,"ドラえもん","藤子・F・不二雄『ドラえもん』",{"$f":"RAND()","v":0.22561606229892162}]
[null,null,null,null,null,null,null,null,null,null,"5/9","下手糞の上級者への道のりは、己が下手さを知りて一歩目",null,"安西監督","井上雄彦『SLAM DUNK』",0.32305043930738897]
[null,null,null,null,null,null,null,null,null,null,"5/10","海を泳いでる最中には 海の広さはわからんよ",null,"胤栄","井上雄彦『バガボンド』",0.29504412825776938]
[null,null,null,null,null,null,null,null,null,null,"5/11","2位じゃダメなんでしょうか？",null,"蓮舫","国会議員。立件民主党。",0.22425471777664896]
[null,null,null,null,null,null,null,null,null,null,"5/12","労力なければ安楽もなく休息もなし。",null,"トーマス・カーライル","フランスの彫刻家『考える人』の作者",0.37798104492900997]
[null,null,null,null,null,null,null,null,null,null,"5/13","道はどんなに険しくとも、笑いながら歩こうぜ！",null,"アントニオ猪木","日本の元プロレスラー",0.24589597329680313]
[null,null,null,null,null,null,null,null,null,null,"5/14","人間は考えることが少なければ少ないほど余計にしゃべる。","The less men think, the more they talk.","モンテスキュー","モンテスキュー",0.48177038669436467]
[null,null,null,null,null,null,null,null,null,null,"5/15","生命のあるかぎり、希望はあるものだ。","While there’s life there’s hope.","セルバンテス","スペインの小説家『ドン・キホーテ』著者",0.62414009718571839]
[null,null,null,null,null,null,null,null,null,null,"5/16","勇気は汝を正しい道に導く。",null,"ベートーヴェン","ドイツの作曲家",0.39730705864351412]
[null,null,null,null,null,null,null,null,null,null,"5/17","人間はどんな所でも学ぶことができる。知りたいという心さえあれば……",null,"ユーリスコット教授","浦沢直樹『MASTERキートン』",0.40054333944162412]
[null,null,null,null,null,null,null,null,null,null,"5/18","物事が変わるのではない。私たちが変わるのだ。","Things do not change; we change.","ソロー","アメリカの作家、詩人、思想家",0.97606093175833564]
[null,null,null,null,null,null,null,null,null,null,"5/19","人間のやることだもの、たま～には失敗する事もあるべさ",null,"御影牧場会場","荒川弘『銀の匙 Silver Spoon』",0.90924187443798121]
[null,null,null,null,null,null,null,null,null,null,"5/20","仕事に喜びを見出すことは、若さの泉を発見することである。","To find joy in work is to discover the fountain of youth.","パール・バック","アメリカの女性小説家",0.36255874867458771]
[null,null,null,null,null,null,null,null,null,null,"5/21","善行には何かの犠牲を伴うのだ！","It costs you something to do good!","ゾラ・ニール・ハーストン","アメリカの黒人女性作家",0.83530607930998746]
[null,null,null,null,null,null,null,null,null,null,"5/22","雲の向こうは、いつも青空。","There is always light behind the clouds.","ルイーザ・メイ・オルコット","アメリカの女性小説家",0.92219482010662901]
[null,null,null,null,null,null,null,null,null,null,"5/23","「明日」という言葉は、優柔不断な人々と子供のために考案された。","The word tomorrow was invented for indecisive people and for children.","ツルゲーネフ","ロシアの小説家",0.95246968203895965]
[null,null,null,null,null,null,null,null,null,null,"5/24","私は良い友人が欲しいし、誰かにとって良い友人で在りたいと思う",null,"アレクサンドル・ビュコック","田中芳樹『銀河英雄伝説』",0.13971790197561496]
[null,null,null,null,null,null,null,null,null,null,"5/25","運命がカードを混ぜ、われわれが勝負する。","Fate shuffles the cards and we play.","ショーペンハウアー","ドイツの哲学者",0.53760325528183672]
[null,null,null,null,null,null,null,null,null,null,"5/26","僕は三十歳、まだまだ成し遂げたいことがある。",null,"スティーブ・ジョブズ","アメリカの実業家",0.77946126959629036]
[null,null,null,null,null,null,null,null,null,null,"5/27","魅力的に愚痴を言うには、天才でなければならない。","It takes a genius to whine appealingly.","スコット・フィッツジェラルド","アメリカの小説家",0.44474716711333673]
[null,null,null,null,null,null,null,null,null,null,"5/28","勝つことは、人を止める。負けることは、人を進める。",null,"柳生石舟斎","NHK大河ドラマ武蔵",0.69524814803632418]
[null,null,null,null,null,null,null,null,null,null,"5/29","夢中になるだけではチャンスはつかめません。自分の能力以上の事に掛けなければ。",null,"土ロシア・ラング","アメリカの写真家",0.4945823452004614]
[null,null,null,null,null,null,null,null,null,null,"5/30","知恵とは、何に目をつぶるかを学ぶこと。","Wisdom is learning what to overlook.","ウィリアム・ジェームズ","アメリカの哲学者、心理学者",0.68042344156972545]
[null,null,null,null,null,null,null,null,null,null,"5/31","自らそうであると信じるもの　-　それが自分自身である。","Man is what he believes.","チェーホフ","ロシアの劇作家、小説家",0.55439460713429256]
[null,null,null,null,null,null,null,null,null,null,"6/1","何かを変えることができる人間とは、大事な物を捨てることのできる人だ",null,"アルミン・アルベルト","諫山創『進撃の巨人』",0.89490931035005816]
[null,null,null,null,null,null,null,null,null,null,"6/2","あなたの傷を知恵に変えなさい。","Turn your wounds into wisdom.","オプラ・ウィンフリー","アメリカの女性テレビ司会者、女優",7.6507359577530631E-2]
[null,null,null,null,null,null,null,null,null,null,"6/3","未来は今日始まる。明日始まるのではない。","The future starts today, not tomorrow.","ヨハネ・パウロ2世","ポーランド出身の第264代ローマ教皇",0.73848062068583109]
[null,null,null,null,null,null,null,null,null,null,"6/4","人は強さに欠けているのではない。意志を欠いているのだ。","People do not lack strength, they lack will.","ヴィクトル・ユーゴー","フランスのロマン主義の詩人",4.6378715200523168E-2]
[null,null,null,null,null,null,null,null,null,null,"6/5","ネクストタイム！",null,"松岡修造","日本の元プロテニスプレーヤー",0.87576625681174092]
[null,null,null,null,null,null,null,null,null,null,"6/6","希望のために扉はいつも開けておきましょう。",null,"エリザベス・キューブラー・ロス","スイスの女性精神科医",0.25006643818432517]
[null,null,null,null,null,null,null,null,null,null,"6/7","俺の敵は だいたい俺です",null,"南波六太","小山宙哉『宇宙兄弟』",0.30659243156277172]
[null,null,null,null,null,null,null,null,null,null,"6/8","涙が出そうになるくらいに、生きろ。","Live to the point of tears.","アルベール・カミュ","フランスの小説家",0.92090156515889188]
[null,null,null,null,null,null,null,null,null,null,"6/9","平等にという叫びは、誰をも引きずり下ろす。","The cry of equality pulls everyone down.","アイリス・マードック","アイルランドの女性作家、哲学者",0.70900348876848385]
[null,null,null,null,null,null,null,null,null,null,"6/10","大望は、偉大な人物を育てる。","Great hopes make great men.","トーマス・フラー","イギリスの聖職者",0.49992778274173755]
[null,null,null,null,null,null,null,null,null,null,"6/11","苦さの味を知らぬものは甘さもわからない。",null,"ドイツのことわざ",null,0.80837209575645474]
[null,null,null,null,null,null,null,null,null,null,"6/12","希望を生かし続けなさい。","Keep hope alive!","ジェシー・ジャクソン","アメリカの市民権活動家",0.33295634403138186]
[null,null,null,null,null,null,null,null,null,null,"6/13","失敗は回り道。行き止まりではない。","Failure is a detour, not a dead-end street.","ジグ・ジグラー","アメリカのモチベーション講演家",0.22867319661841257]
[null,null,null,null,null,null,null,null,null,null,"6/14","自分自身が何をしたいのかを、忘れてはいけません。",null,"イチロー","日本のプロ野球選手",0.22362889039571221]
[null,null,null,null,null,null,null,null,null,null,"6/15","質の高い質問が、質の高い人生を創る。","Quality questions create a quality life.","アンソニー・ロビンズ","アメリカの自己啓発書作家、講演家",0.50969841712992736]
[null,null,null,null,null,null,null,null,null,null,"6/16","汗で溺れた者はいない。","No one has ever drowned in sweat.","ルー・ホルツ","アメリカのカレッジフットボールコーチ",0.15231514163182103]
[null,null,null,null,null,null,null,null,null,null,"6/17","食べ物に対する愛より誠実な愛はない。","There is no love sincerer than the love of food.","バーナード・ショー","アイルランドの劇作家",0.15140699314036032]
[null,null,null,null,null,null,null,null,null,null,"6/18","いつかできることはすべて、今日でもできる。","Whatever can be done another day can be done today.","モンテーニュ","フランスの哲学者、モラリスト",0.5245494703954261]
[null,null,null,null,null,null,null,null,null,null,"6/19","与えることで貧しくなった人はいまだかつて一人もいません。",null,"アンネ・フランク","「アンネの日記」著者",0.86052413797491778]
[null,null,null,null,null,null,null,null,null,null,"6/20","嫉妬ほど、視覚を鋭敏にするものはない。","Nothing sharpens sight like envy.","トーマス・フラー","イギリスの聖職者、歴史家",0.38830647116263539]
[null,null,null,null,null,null,null,null,null,null,"6/21","優しさこそ、ほんとうの強さだ。","Only the gentle are ever really strong.","ジェームズ・ディーン","アメリカの俳優",0.80411640972794241]
[null,null,null,null,null,null,null,null,null,null,"6/22","心の純粋さとは、ひとつのものを望むことである。","Purity of heart is to will one thing.","キルケゴール","デンマークの哲学者、実存主義の創始者",0.73359451342383919]
[null,null,null,null,null,null,null,null,null,null,"6/23","崖っぷちありがとう！最高だ！",null,"松岡修造","日本の元プロテニスプレーヤー",0.4731257189840774]
[null,null,null,null,null,null,null,null,null,null,"6/24","知らない人とは、これから知り合う人のこと。","A foreigner is a friend I have yet to meet.","パール・バック","アメリカの女性小説家",0.65762007738653216]
[null,null,null,null,null,null,null,null,null,null,"6/25","人生はキミ自身が決意し、貫くしかないんだよ。",null,"岡本太郎","日本の芸術家",0.92851406428891237]
[null,null,null,null,null,null,null,null,null,null,"6/26","天下無双とは────── ただの言葉じゃ",null,"胤栄","井上雄彦『バガボンド』",0.8789305151469875]
[null,null,null,null,null,null,null,null,null,null,"6/27","人生で最も永続的で、しかも緊急の問いかけは「他人のために、今あなたは何をしているか」である。",null,"キング牧師","アメリカの牧師、公民権運動の指導者",0.36569501623161771]
[null,null,null,null,null,null,null,null,null,null,"6/28","すべて学び、そして忘れろ。","Learn all that stuff and then forget it.","マイルス・デイヴィス","アメリカのジャズトランペット奏者",0.84727847593316419]
[null,null,null,null,null,null,null,null,null,null,"6/29","アドバイスをもらう人は多い。でも、その恩恵を受けるのは賢い人だけ。","Many receive advice, only the wise profit from it.","ハーパー・リー","アメリカの小説家",0.24144022395780973]
[null,null,null,null,null,null,null,null,null,null,"6/30","何事も成功するまでは不可能に思えるものである。","It always seems impossible until it’s done.","ネルソン・マンデラ","南アフリカ共和国の政治家",0.23699260891578999]
[null,null,null,null,null,null,null,null,null,null,"7/1","満足感は結果にではなく、過程にこそある。","The gratification comes in the doing, not in the results.","ジェームズ・ディーン","アメリカの俳優",0.44904100536952163]
[null,null,null,null,null,null,null,null,null,null,"7/2","余り考え過ごす者は何事をも成し得ない。","Who reflects too much will accomplish little.","シラー","ドイツの詩人、歴史学者",0.50464298041635525]
[null,null,null,null,null,null,null,null,null,null,"7/3","争いは、同じレベルの者同士でしか発生しない!!",null,"桂木桂馬","若木民喜『神のみぞ知るセカイ』",0.59073785047218552]
[null,null,null,null,null,null,null,null,null,null,"7/4","断固たる決意が必要なんだ!!",null,"安西監督","井上雄彦『SLAM DUNK』",0.35203608688218468]
[null,null,null,null,null,null,null,null,null,null,"7/5","笑わない人に出会ったら、あなたの笑顔を与えましょう。","If you see someone without a smile give them yours.","ドリー・パートン","アメリカのシンガーソングライター",0.24441191585963884]
[null,null,null,null,null,null,null,null,null,null,"7/6","成功したいのなら、人並み以上の努力をするのだ。","We aim above the mark to hit the mark.","エマーソン","アメリカの思想家、哲学者",0.33314373828231902]
[null,null,null,null,null,null,null,null,null,null,"7/7","自分を元気づける一番の方法は、誰かほかの人を元気づけて挙げることだ。",null,"マーク・ツウェイン","アメリカの作家",0.86286875670877017]
[null,null,null,null,null,null,null,null,null,null,"7/8","想像できることは、すべて現実なのだ。","Everything you can imagine is real.","パブロ・ピカソ","スペイン出身の画家、彫刻家",0.90842695271054208]
[null,null,null,null,null,null,null,null,null,null,"7/9","私たちが行動を決定するように、行動も私たちの人間性を決めている。","Our deeds determine us, as much as we determine our deeds.","ジョージ・エリオット","イギリスの女性作家",0.41081853481090602]
[null,null,null,null,null,null,null,null,null,null,"7/10","「今から何にでもなれる」 って思うと 楽しくならない？",null,"相川進之介","荒川弘『銀の匙 Silver Spoon』",0.50251561436589331]
[null,null,null,null,null,null,null,null,null,null,"7/11","「神様お願いします」より「神様のおかげです」の方が良い。",null,"ロシアのことわざ",null,{"$f":"RAND()","v":3.9141784466760532E-2}]
[null,null,null,null,null,null,null,null,null,null,"7/12","為せば成る、為さねば成らぬ成る業を成らぬと捨つる人のはかなき",null,"武田信玄","戦国時代の武将",0.64296693476185873]
[null,null,null,null,null,null,null,null,null,null,"7/13","道草を楽しめ 大いにな",null,"ジン","冨樫義博『HUNTER×HUNTER』",1.8695958564978188E-2]
[null,null,null,null,null,null,null,null,null,null,"7/14","犬は決して私に噛みつきません。裏切るのは人間だけです。","Dogs never bite me. Just humans.","マリリン・モンロー","アメリカの女優",0.35578817123320461]
[null,null,null,null,null,null,null,null,null,null,"7/15","つまづいたっていいじゃないか　にんげんだもの",null,"相田みつを","日本の詩人、書家",0.44159560235608075]
[null,null,null,null,null,null,null,null,null,null,"7/16","誰かの心の雲に架かる虹となってあげましょう。","Try to be a rainbow in someone’s cloud.","マヤ・アンジェロウ","アメリカの詩人、作家、公民権運動家",0.84524861013298636]
[null,null,null,null,null,null,null,null,null,null,"7/17","先に見出し、後に捜し求めよ。","Find first, seek later.","ジャン・コクトー","フランスの詩人、小説家、芸術家",0.85545752943683129]
[null,null,null,null,null,null,null,null,null,null,"7/18","私は失敗していない。ただ1万通りのうまくいかない方法を見つけただけだ。",null,"トーマス・エジソン","トーマス・エジソン",0.34884198903156249]
[null,null,null,null,null,null,null,null,null,null,"7/19","信念は、行動に移さなければ価値がない。","Conviction is worthless unless it is converted into conduct.","トーマス・カーライル","イギリスの思想家、歴史家",0.41382967550771399]
[null,null,null,null,null,null,null,null,null,null,"7/20","知る者は好む者に及ばない。好む者も楽しむ者には及ばない。",null,"孔子","秋時代の中国の思想家・哲学者",0.86245932352079535]
[null,null,null,null,null,null,null,null,null,null,"7/21","急速は事を破り、寧耐は事を成す。","※寧耐（ねいたい）：落ち着いて耐え忍ぶ）","西郷隆盛","維新の三英傑の一人",0.69204705430249591]
[null,null,null,null,null,null,null,null,null,null,"7/22","失った物ばかり数えるな！！！",null,"ジンベエ","尾田栄一郎『ONE PIECE』",0.9735767271019331]
[null,null,null,null,null,null,null,null,null,null,"7/23","何事も実現するまでが一番楽しい。",null,"ジョージ・エリオット","イギリスの女性作家",0.30755200511000824]
[null,null,null,null,null,null,null,null,null,null,"7/24","最もよく知っている人間は、自分がほとんど知らないことを知っている。","He who knows best knows how little he knows.","トーマス・ジェファーソン","アメリカの第3代大統領",0.85125887156477764]
[null,null,null,null,null,null,null,null,null,null,"7/25","賢者はチャンスを見つけるよりも、みずからチャンスを創りだす。","A wise man will make more opportunities than he finds.","フランシス・ベーコン","イギリスの哲学者",0.49560860692827713]
[null,null,null,null,null,null,null,null,null,null,"7/26","人生というものは、思わぬ時に道が開けたり閉じたりするものだ",null,"武者小路宗篤","小説家",0.61241984695886653]
[null,null,null,null,null,null,null,null,null,null,"7/27","敗北を味を知ってこそ、最も甘美な勝利が味わえる。","Victory is sweetest when you’ve known defeat.","マルコム・フォーブス","アメリカのフォーブス誌の元発行人",0.18688682712339599]
[null,null,null,null,null,null,null,null,null,null,"7/28","スベっても落ち込むほど、実力がない。",null,"明石家さんま","日本の芸人",0.98580941699327951]
[null,null,null,null,null,null,null,null,null,null,"7/29","私達の財産、それは私達の頭の中にある。","Our riches, being in our brains.","モーツァルト","オーストリアの作曲家、演奏家",0.72609007614309096]
[null,null,null,null,null,null,null,null,null,null,"7/30","成熟するためには遠回りをしなければならない。",null,"開高健","小説家",0.37709325691255269]
[null,null,null,null,null,null,null,null,null,null,"7/31","自然に還れ。","Back to Nature.","ルソー","ジュネーヴ共和国出身の哲学者",0.26910388900032223]
[null,null,null,null,null,null,null,null,null,null,"8/1","熱意を失ってしまった人ほど年老いた人はいない。","None are so old as those who have outlived enthusiasm.","ソロー","アメリカの作家、詩人、思想家",9.6980160029506379E-2]
[null,null,null,null,null,null,null,null,null,null,"8/2","一粒の木の実は、いくつもの森を生む。","The creation of a thousand forests is in one acorn.","エマーソン","アメリカの思想家、哲学者",4.2597612582565558E-2]
[null,null,null,null,null,null,null,null,null,null,"8/3","一度でもあきらめてしまうと、それが癖になる。絶対にあきらめるな。",null,"マイケル・ジョーダン","アメリカの元プロバスケット選手",0.99830032097898536]
[null,null,null,null,null,null,null,null,null,null,"8/4","事実というものは存在しない。存在するのは解釈だけである。","There are no facts, only interpretations.","ニーチェ","ドイツの哲学者、古典文献学者",0.78378259657598448]
[null,null,null,null,null,null,null,null,null,null,"8/5","最良なる未来の予言者は、過去なり。","The best prophet of the future is the past.","バイロン","イギリスの詩人",0.58252132780162758]
[null,null,null,null,null,null,null,null,null,null,"8/6","空を道とし、道を空とみる。",null,"宮本武蔵","江戸時代初期の剣術家、兵法家",0.78664451116256229]
[null,null,null,null,null,null,null,null,null,null,"8/7","平和を試してみよう！僕らが言ってるのはそれだけだ。","All we are saying is give peace a chance!","ジョン・レノン","イギリスのミュージシャン",0.87896889010036938]
[null,null,null,null,null,null,null,null,null,null,"8/8","自分のことを笑えるようになるまでは、決して幸せにはなれない。","We are never happy until we learn to laugh at ourselves.","ドロシー・ディックス","アメリカのジャーナリスト",0.80815173126982942]
[null,null,null,null,null,null,null,null,null,null,"8/9","私は無駄にこの世に生まれてきたのではない。また人間として生まれてきたからには、無駄にこの世を過ごしたくない。",null,"相田みつを","日本の詩人・書家",6.5393438379150348E-2]
[null,null,null,null,null,null,null,null,null,null,"8/10","友人とは秘密を上手にばらしてくれるもの。","She always kept things secret in such a public way.","キャサリン・アン・ポーター","アメリカの短編作家、風刺詩人",0.46625753663289171]
[null,null,null,null,null,null,null,null,null,null,"8/11","ビジョンとは、見えないものを見る技術だ。","Vision is the art of seeing things invisible.","ジョナサン・スウィフト","アイルランドの作家",1.8755488752940752E-2]
[null,null,null,null,null,null,null,null,null,null,"8/12","最良の仕返しとは、大きな成功を収めることさ。","The best revenge is massive success.","フランク・シナトラ","アメリカのジャズ・ポピュラー歌手",0.75278397788992868]
[null,null,null,null,null,null,null,null,null,null,"8/13","どこでプレーしても俺の成長はあるわけで。",null,"本田圭佑","日本のプロサッカー選手",0.89916429499003236]
[null,null,null,null,null,null,null,null,null,null,"8/14","自分の星に従え！","Follow your own star!","ダンテ","イタリアの詩人",0.7606754474860894]
[null,null,null,null,null,null,null,null,null,null,"8/15","自分の運命は自分でコントロールすべきだ。さもないと、誰かにコントロールされてしまう。","Control your own destiny or someone else will.","ジャック・ウェルチ","アメリカの経営者",0.46247925016651315]
[null,null,null,null,null,null,null,null,null,null,"8/16","人間には必ず人生の転機を直感し、的確に判断できるかどうかを試される時が何度かある。",null,"アントニオ猪木","日本の元プロレスラー",0.37073720192172099]
[null,null,null,null,null,null,null,null,null,null,"8/17","言葉にできる寂しさは誰かが慰めてくれます 言葉にしない悲しみは自分で乗り越えていくしかないのです",null,"翠星石","PEACH-PIT『ローゼンメイデン』",0.67469488614833373]
[null,null,null,null,null,null,null,null,null,null,"8/18","第三者の評価を意識した生き方はしたくない。自分が納得した生き方をしたい。",null,"イチロー","日本のプロ野球選手",0.24769123625081757]
[null,null,null,null,null,null,null,null,null,null,"8/19","過去が現在に影響を与えるように、未来も現在に影響を与える",null,"ニーチェ","ドイツの哲学者、古典文献学者",8.4299945536971066E-2]
[null,null,null,null,null,null,null,null,null,null,"8/20","聖人になるために、天使になる必要はない。","A man does not have to be an angel in order to be saint.","アルベルト・シュバイツァー","ドイツ出身の哲学者",0.66157852243821702]
[null,null,null,null,null,null,null,null,null,null,"8/21","浪費するのを楽しんだ時間は、浪費された時間ではない。","The time you enjoy wasting is not wasted time.","バートランド・ラッセル","イギリスの哲学者",0.75690821209578385]
[null,null,null,null,null,null,null,null,null,null,"8/22","何事も最初は難しく、やがて簡単になる。","All things are difficult before they are easy.","トーマス・フラー","イギリスの聖職者、歴史家",0.91098921982207448]
[null,null,null,null,null,null,null,null,null,null,"8/23","何が嫌いかより　何が好きかで自分を語れよ!!!",null,"吉備真備","西公平『ツギハギ漂流作家』",0.63103441293241447]
[null,null,null,null,null,null,null,null,null,null,"8/24","自分の夢、そんなに簡単に諦められるかって話でしょ。",null,"本田圭佑","日本のプロサッカー選手",0.98035265289141793]
[null,null,null,null,null,null,null,null,null,null,"8/25","より良い方法は、常に存在している。","There is always a better way.","トーマス・エジソン","アメリカの発明家、起業家",0.48795527305263986]
[null,null,null,null,null,null,null,null,null,null,"8/26","敗北？　私はその言葉の意味を存じ上げません。","Defeat? I do not recognize the meaning of the word.","マーガレット・サッチャー","イギリス初の女性首相",0.24961553685416682]
[null,null,null,null,null,null,null,null,null,null,"8/27","許しとは自分自身への贈り物。","Often you have to rely on intuition.","スザンヌ・サマーズ","アメリカの女優",5.1482360559793716E-2]
[null,null,null,null,null,null,null,null,null,null,"8/28","人は全て自主独立すべきものである。自立の精神は人への思いやりと共に人生の根本を成すものである",null,"渋沢栄一","日本の武士、実業家",0.97580153230957167]
[null,null,null,null,null,null,null,null,null,null,"8/29","失敗とは避けられないものであり、成功とは手に入れにくいものだ。","Failure is inevitable. Success is elusive.","スティーヴン・スピルバーグ","アメリカの映画監督",0.11146712448092377]
[null,null,null,null,null,null,null,null,null,null,"8/30","もしわたしが自分らしくならなければ、いったい誰が？","If I won’t be myself, who will?","アルフレッド・ヒッチコック","イギリスの映画監督",0.96523078429724618]
[null,null,null,null,null,null,null,null,null,null,"8/31","我慢は力よりも気高く、忍耐は美しさに勝る。","Endurance is nobler than strength, and patience than beauty.","ジョン・ラスキン","イギリスの美術評論家、社会思想家",4.7527869931671907E-2]
[null,null,null,null,null,null,null,null,null,null,"9/1","物事を成し遂げる秘訣は、行動することだ！","The secret of getting things done is to act!","ダンテ","イタリアの詩人、哲学者、政治家",0.99834484609665664]
[null,null,null,null,null,null,null,null,null,null,"9/2","戦いに勝つのは、必ず勝とうと堅く決心した者だ。",null,"トルストイ","ロシアの小説家、思想家",0.53906723300542003]
[null,null,null,null,null,null,null,null,null,null,"9/3","くすぶるな、燃えあがれ。",null,"チェーホフ","ロシアの劇作家",0.95455159697132774]
[null,null,null,null,null,null,null,null,null,null,"9/4","天空は動いても、次なる未来を教えはしない。",null,"カフカ","現在のチェコ出身の小説家",0.70746999977878289]
[null,null,null,null,null,null,null,null,null,null,"9/5","過去よりも大きな夢を持とう。","Never let your memories be greater than your dreams.","ダグラス・アイベスター","アメリカの経営者",0.45235102786596604]
[null,null,null,null,null,null,null,null,null,null,"9/6","苦難は、人間を作るか壊すかのどちらかだ。","Hardships make or break people.","マーガレット・ミッチェル","アメリカの小説家『風と共に去りぬ』著者",0.65060896253404565]
[null,null,null,null,null,null,null,null,null,null,"9/7","最も危険なのは、質より量へ逃避すること。","The lure of quantity is the most dangerous of all.","シモーヌ・ヴェイユ","フランスの女性哲学者",0.44406735838836242]
[null,null,null,null,null,null,null,null,null,null,"9/8","英雄とは、自分のできることをする人だ。","A hero is a man who does what he can.","ロマン・ロラン","フランスの作家",0.71194757958344912]
[null,null,null,null,null,null,null,null,null,null,"9/9","正直は、常に最上の政策である。","Honesty is always the best policy.","ジョージ・ワシントン","アメリカ初代大統領",0.77265115391557793]
[null,null,null,null,null,null,null,null,null,null,"9/10","あえて愚かなピエロのお面をつけるのさ。","Dare to wear the foolish clown face.","フランク・シナトラ","アメリカのジャズ・ポピュラー歌手",0.27229726257063791]
[null,null,null,null,null,null,null,null,null,null,"9/11","それが何であれ、あなたの得意なことが幸福に導いてくれる。","Anything you’re good at contributes to happiness.","バートランド・ラッセル","イギリスの哲学者",0.41830279258444292]
[null,null,null,null,null,null,null,null,null,null,"9/12","真実は、虐げられる側にある。","Truth is on the side of the oppressed.","マルコムX","アメリカの黒人公民権運動家",0.88196259569816582]
[null,null,null,null,null,null,null,null,null,null,"9/13","人にできて、きみにだけできないなんてことあるもんか。",null,"ドラえもん","藤子・F・不二雄『ドラえもん』",{"$f":"RAND()","v":0.12485007949838467}]
[null,null,null,null,null,null,null,null,null,null,"9/14","空腹は世界中で最上の調味料である。","Hunger is the best sauce in the world.","セルバンテス","スペインの小説家『ドン・キホーテ』著者",0.70261511843958968]
[null,null,null,null,null,null,null,null,null,null,"9/15","楽観的であるという事は、顔を常に太陽へ向け、足を常に前へ踏み出すことである。",null,"ネルソン・マンデラ","南アフリカ共和国の政治家",0.19521455343199179]
[null,null,null,null,null,null,null,null,null,null,"9/16","こけたら、立ちなはれ。",null,"松下幸之助","日本の実業家、発明家",0.13942364173707245]
[null,null,null,null,null,null,null,null,null,null,"9/17","逆境は真実ヘの第一歩。","Adversity is the first path to truth.","バイロン","イギリスの詩人",0.59938445761152637]
[null,null,null,null,null,null,null,null,null,null,"9/18","止まりさえしなければ、どんなにゆっくりでも進めばよい。",null,"孔子","中国の思想家",3.9850159321487166E-2]
[null,null,null,null,null,null,null,null,null,null,"9/19","たいていの人は本当に何が欲しいのか心の中で分かっています",null,"バーバラ・ブラハム","アメリカのビジネスコンサルタント",0.90953177791340145]
[null,null,null,null,null,null,null,null,null,null,"9/20","人が通ったところに、道は出来る。","Paths are made by walking.","カフカ","チェコ出身の小説家",0.40671781423290854]
[null,null,null,null,null,null,null,null,null,null,"9/21","私はだれの意見にも賛成したいと思わない。私は自分の意見を持っている。","I agree with no one’s opinion. I have some of my own.","ツルゲーネフ","ロシアの小説家",0.65619880026014177]
[null,null,null,null,null,null,null,null,null,null,"9/22","あなたにできることをしなさい。今あるもので、今いる場所で。","Do what you can, with what you have, where you are.","セオドア・ルーズベルト","アメリカの第26代大統領",5.0574387756125216E-2]
[null,null,null,null,null,null,null,null,null,null,"9/23","我思う、故に我在り","Cogito,ergo sum","ルネ・デカルト","フランスの哲学者",0.4926661852007852]
[null,null,null,null,null,null,null,null,null,null,"9/24","人生に命を懸けていないんだ。だからとかくただの傍観者になってしまう。",null,"岡本太郎","日本の芸術家",0.64034800490983013]
[null,null,null,null,null,null,null,null,null,null,"9/25","はいあがろう 「負けたことがある」というのがいつか大きな財産になる",null,"堂本監督","井上雄彦『SLAM DUNK』",0.77282862872601554]
[null,null,null,null,null,null,null,null,null,null,"9/26","変化は不可避であり、変化は不変である。","Change is inevitable. Change is constant.","ベンジャミン・ディズレーリ","イギリスの政治家",0.63922388638631666]
[null,null,null,null,null,null,null,null,null,null,"9/27","人生は、人生を生きるものを愛す。","Life loves the liver of it.","マヤ・アンジェロウ","アメリカの詩人、作家",0.74617969916811733]
[null,null,null,null,null,null,null,null,null,null,"9/28","言うことと、やることは別のものである。","Saying is one thing and doing is another.","モンテーニュ","フランスの哲学者、モラリスト",7.6872727567022348E-2]
[null,null,null,null,null,null,null,null,null,null,"9/29","効率や損得にとらわれると、人間が小さくなる。",null,"斎藤茂太","精神科医・随筆家",0.27999103776183309]
[null,null,null,null,null,null,null,null,null,null,"9/30","重要なのは人生の長さではない。人生の深さだ。","It is not length of life, but depth of life.","エマーソン","アメリカの思想家、哲学者",0.82681647462020258]
[null,null,null,null,null,null,null,null,null,null,"10/1","解決できない問題なんてないさ。",null,"ジョン・レノン","イギリスのミュージシャン",0.51744999581679396]
[null,null,null,null,null,null,null,null,null,null,"10/2","美貌とは見る造作よりも感じる調和であるような気がする",null,"御門周平","夢枕獏×伊藤勢『荒野に獣慟哭す』",0.66368772811965437]
[null,null,null,null,null,null,null,null,null,null,"10/3","僕の役目はホームランを打つことだ。",null,"王貞治","日本の元プロ野球選手",0.44046259796843557]
[null,null,null,null,null,null,null,null,null,null,"10/4","忍耐もまた行動の一つの形態だ。","Patience is also a form of action.","ロダン","フランスの彫刻家『考える人』の作者",0.7963925388478722]
[null,null,null,null,null,null,null,null,null,null,"10/5","苦しいか？　笑え！",null,"松岡修造","日本の元プロテニスプレーヤー",0.93342042909668377]
[null,null,null,null,null,null,null,null,null,null,"10/6","人生の経験とは、それをバネに成長するための教訓。だから本当にひどい出来事なんてない。",null,"スーザン・マザーズ","イギリスの女優",0.42632211340236137]
[null,null,null,null,null,null,null,null,null,null,"10/7","ハングリーであれ。愚か者であれ。","Stay hungry. Stay foolish.","スティーブ・ジョブズ","アメリカの実業家",0.90722562217552372]
[null,null,null,null,null,null,null,null,null,null,"10/8","どんなに暗くても、星は輝いている。","When it is dark enough, you can see the stars.","エマーソン","アメリカの思想家",0.37950692472930614]
[null,null,null,null,null,null,null,null,null,null,"10/9","金持ちのままで死ぬのは不名誉な死である。","The man who dies rich dies disgraced.","アンドリュー・カーネギー","アメリカの実業家、鉄鋼王",0.46214656824637246]
[null,null,null,null,null,null,null,null,null,null,"10/10","人間の目は、失敗して初めて開くものだ。",null,"チェーホフ","ロシアの劇作家",0.5657351618136689]
[null,null,null,null,null,null,null,null,null,null,"10/11","一つの事を一生やり続けられると確信する日が来る",null,"スティーブ・ジョブズ","アメリカの実業家",0.41354586928620118]
[null,null,null,null,null,null,null,null,null,null,"10/12","毎日の小さな努力のつみ重ねが、歴史を作っていくんだよ！！",null,"ドラえもん","藤子・F・不二雄『ドラえもん』",0.24212756894960119]
[null,null,null,null,null,null,null,null,null,null,"10/13","あのね、立派な人になんかにならなくてもいいの。感じの良い人になって下さい。",null,"坂本金八","3年Ｂ組金八先生",0.79136245015091644]
[null,null,null,null,null,null,null,null,null,null,"10/14","すべてのルールに従えば、すべての楽しみを取り逃がしてしまう。","If you obey all the rules, you miss all the fun.","キャサリン・ヘプバーン","アメリカの女優",0.35439773905675453]
[null,null,null,null,null,null,null,null,null,null,"10/15","過去の結果としての現在より、未来の礎としての今日を活きよう",null,"ルパート・ケッセルリンク","田中芳樹『銀河英雄伝説』",0.72993895354523619]
[null,null,null,null,null,null,null,null,null,null,"10/16","ささいなことが完璧を生む。しかし、完璧はささいなことではない。","Trifles make perfection, but perfection is no trifle.","ミケランジェロ","イタリアの彫刻家",0.52604626366094565]
[null,null,null,null,null,null,null,null,null,null,"10/17","勇気を持った一人の人間は、多数派である。","One man with courage is a majority.","トーマス・ジェファーソン","アメリカの第3代大統領",0.19119528835059785]
[null,null,null,null,null,null,null,null,null,null,"10/18","多数の友を持つ者は、一人の友も持たない。","A friend to all is a friend to none.","アリストテレス","古代ギリシアの哲学者",1.7106231777958003E-2]
[null,null,null,null,null,null,null,null,null,null,"10/19","夢は叶えるためにある",null,"桜木花道","井上雄彦『SLAM DUNK』",0.11386240553113269]
[null,null,null,null,null,null,null,null,null,null,"10/20","一日生きることは、一歩進むことでありたい。",null,"湯川秀樹","日本の理論物理学者",0.2089689475222416]
[null,null,null,null,null,null,null,null,null,null,"10/21","人は不幸の時は一を十にも思い、幸福の時は当たり前のようにそれに慣れて、十を一のように思います",null,"瀬戸内寂聴","女性小説家",0.88453273440821545]
[null,null,null,null,null,null,null,null,null,null,"10/22","笑えるときは常に笑え。金のかからない薬だ。","Always laugh when you can. It is cheap medicine.","バイロン","イギリスの詩人",5.4532001144358966E-2]
[null,null,null,null,null,null,null,null,null,null,"10/23","値の高さが、肉の味をよくする。",null,"モンテーニュ","フランスの哲学者、モラリスト",0.98368932427941702]
[null,null,null,null,null,null,null,null,null,null,"10/24","すべては過程だ。結果ではない。","It’s all about the journey, not the outcome.","カール・ルイス","アメリカの陸上競技選手",0.51514691175834548]
[null,null,null,null,null,null,null,null,null,null,"10/25","たまには休むのもひとつの仕事じゃない？",null,"トーベ・ヤンソン","フィンランドの画家、小説家",0.88409892164600967]
[null,null,null,null,null,null,null,null,null,null,"10/26","幸せとは、健康で記憶力が悪いということだ。","Happiness is nothing more than good health and a bad memory.","アルベルト・シュバイツァー","ドイツ出身の哲学者、医者",0.97545188328286037]
[null,null,null,null,null,null,null,null,null,null,"10/27","絶望は、臆病者に勇気を与える。","Despair gives courage to a coward.","トーマス・フラー","イギリスの聖職者、歴史家",0.22526331906028318]
[null,null,null,null,null,null,null,null,null,null,"10/28","アイデアはあらゆることから生まれる。","Ideas come from everything.","アルフレッド・ヒッチコック","イギリスの映画監督",0.15360122042272106]
[null,null,null,null,null,null,null,null,null,null,"10/29","僕の前に道はない　僕の後ろに道は出来る",null,"高村光太郎","日本の詩人、彫刻家",0.32267564060404119]
[null,null,null,null,null,null,null,null,null,null,"10/30","やればわかる!!　やらなければ、一生わからん!!",null,"炎尾燃","島本和彦『燃えよペン』",1.4206891252089626E-2]
[null,null,null,null,null,null,null,null,null,null,"10/31","最も重要なことから始めよ。",null,"ピーター・ドラッカー","オーストリア出身の経営学者",0.61592629616806649]
[null,null,null,null,null,null,null,null,null,null,"11/1","僕らはみんな幼少期の産物なんだ。","All of us are products of our childhood.","マイケル・ジャクソン","アメリカのシンガーソングライター",5.5561752179056789E-2]
[null,null,null,null,null,null,null,null,null,null,"11/2","人格は厳しい状況の元でこそ計られる",null,"ネルソン・マンデラ","南アフリカ共和国の政治家",0.22940371306861818]
[null,null,null,null,null,null,null,null,null,null,"11/3","日々生まれ変わるのに忙しくない人は、日々死ぬのに忙しい。","He not busy being born is busy dying.","ボブ・ディラン","アメリカのミュージシャン",0.87542363991366168]
[null,null,null,null,null,null,null,null,null,null,"11/4","権威とは 衣の上から着るものだ。着ている服を取ってしまえば、そこにいるのはただの人間同士。",null,"コブラ","尾田栄一郎『ONE PIECE』",0.72171379716844841]
[null,null,null,null,null,null,null,null,null,null,"11/5","人生とは今日一日のことである。",null,"デール・カーネギー","アメリカの実業家",0.17561519199946773]
[null,null,null,null,null,null,null,null,null,null,"11/6","しばしば、直観が頼みの綱になる。","Often you have to rely on intuition.","ビル・ゲイツ","マイクロソフト社の創業者",0.47074229220264097]
[null,null,null,null,null,null,null,null,null,null,"11/7","純粋な心だけが美味しいスープを作る。","Only the pure in heart can make a good soup.","ベートーヴェン","ドイツの作曲家",0.35840533101477767]
[null,null,null,null,null,null,null,null,null,null,"11/8","足下を掘れ、そこに泉あり。",null,"ニーチェ","ドイツの哲学者、古典文献学者",7.1555186322318831E-2]
[null,null,null,null,null,null,null,null,null,null,"11/9","愚か者は、まじめさを盾にする。","Solemnity is the shield of idiots.","モンテスキュー","フランスの哲学者",0.14012622121835749]
[null,null,null,null,null,null,null,null,null,null,"11/10","悲観的になるのは自分の事ばかり考えているから。",null,"斎藤茂太","精神科医・随筆家",0.63353471671701767]
[null,null,null,null,null,null,null,null,null,null,"11/11","ぜーんぶ ひっくるめての お前なんだ いいんだ それで",null,"沢庵","井上雄彦『バガボンド』",0.93992818143656032]
[null,null,null,null,null,null,null,null,null,null,"11/12","もっとも高く飛ぶカモメはもっとも遠くを見通す。",null,"リチャード・バック","アメリカの作家『かもめのジョナサン』著者",0.26727600706985599]
[null,null,null,null,null,null,null,null,null,null,"11/13","恐怖ほど、恐れられるものはない。","Nothing is so much to be feared as fear.","ソロー","アメリカの作家、詩人、思想家",0.28432633604252455]
[null,null,null,null,null,null,null,null,null,null,"11/14","偽善で結構!!　やらない善よりやる偽善だ!",null,"エドワード・エルリック","荒川弘『鋼の錬金術師』",0.79139204074655134]
[null,null,null,null,null,null,null,null,null,null,"11/15","自分の事をこの世の誰とも比べてはいけない。それは自分自身を侮辱する行為だ。",null,"ビル・ゲイツ","アメリカの実業家",1.0769065383792076E-2]
[null,null,null,null,null,null,null,null,null,null,"11/16","知識は語り、知恵は耳を傾ける。","Knowledge speaks, but wisdom listens.","ジミ・ヘンドリックス","アメリカのギタリスト",{"$f":"RAND()","v":0.28225428744501213}]
[null,null,null,null,null,null,null,null,null,null,"11/17","始まりは、どんなものでも小さい。","The beginnings of all things are small.","キケロ","共和政ローマの政治家",0.13016535913541638]
[null,null,null,null,null,null,null,null,null,null,"11/18","身をもって示すことがリーダーシップである。","Example is leadership.","アルベルト・シュバイツァー","ドイツ出身の哲学者、医者",9.9993785138582258E-2]
[null,null,null,null,null,null,null,null,null,null,"11/19","色々考えられる選択肢の中から「この一手」を選ぶのは自分しかいない訳です。",null,"羽生善治","将棋棋士",0.63430076394818025]
[null,null,null,null,null,null,null,null,null,null,"11/20","機敏であれ、しかし慌ててはいけない。","Be quick, but don’t hurry.","ジョン・ウッデン","アメリカの大学バスケットボールコーチ",0.45700740729248335]
[null,null,null,null,null,null,null,null,null,null,"11/21","嵐は木々をより深く根づかせる。","Storms make trees take deeper roots.","ドリー・パートン","アメリカのシンガーソングライター",0.26471514971532939]
[null,null,null,null,null,null,null,null,null,null,"11/22","恐怖は常に無知から生じる。","Fear always springs from ignorance.","エマーソン","アメリカの思想家、哲学者",0.1109442723540599]
[null,null,null,null,null,null,null,null,null,null,"11/23","変化とは人生の法則である。過去と現在しか見ない人は確実に未来を見失う",null,"ジョン・F・ケネディ","アメリカの第35代大統領",0.27866851941195969]
[null,null,null,null,null,null,null,null,null,null,"11/24","忙しい人間は涙のための時間を持たない。","The busy have no time for tears.","バイロン","イギリスの詩人",0.73947364890098399]
[null,null,null,null,null,null,null,null,null,null,"11/25","打たないシュートは、100％外れる。","You miss 100% of the shots you don’t take.","ウェイン・グレツキー","カナダのプロアイスホッケー選手",0.56169659563024699]
[null,null,null,null,null,null,null,null,null,null,"11/26","認めてしまえ ありのままのお前を",null,"沢庵","井上雄彦『バガボンド』",0.77693198472045155]
[null,null,null,null,null,null,null,null,null,null,"11/27","夢中で日を過ごしておれば、いつかはわかる時が来る",null,"坂本龍馬","幕末の志士、土佐藩郷士",0.48632947407869231]
[null,null,null,null,null,null,null,null,null,null,"11/28","医者は 人をなおすんじゃない　人をなおす手伝いをするだけだ　なおすのは…本人なんだ",null,"本間丈太郎","手塚治虫『BLACK JACK』",0.13902518983682211]
[null,null,null,null,null,null,null,null,null,null,"11/29","失敗なんてありえないと信じて、やってみるんだ。","Believe and act as if it were impossible to fail.","チャールズ・ケタリング","科学者、発明家",0.34841078475268539]
[null,null,null,null,null,null,null,null,null,null,"11/30","「できる事」が増えるより、「楽しむ事」が増えるのが、いい人生。",null,"斎藤茂太","精神科医・随筆家",4.9424215104312719E-2]
[null,null,null,null,null,null,null,null,null,null,"12/1","笑われて　笑われて　つよくなる",null,"太宰治","日本の小説家",9.6482521935047361E-3]
[null,null,null,null,null,null,null,null,null,null,"12/2","わたしは死ぬまで生きるんだ。","I’m gonna live till I die.","フランク・シナトラ","アメリカのジャズ・ポピュラー歌手",0.11897654137022962]
[null,null,null,null,null,null,null,null,null,null,"12/3","全てのことは願うことから始まる。",null,"マルティン・ルター","ドイツの宗教改革者",0.45735260520390297]
[null,null,null,null,null,null,null,null,null,null,"12/4","人生はクローズアップで観れば悲劇だが、ロングショットで観れば喜劇だ。",null,"チャーリー・チャップリン","イギリスの俳優",0.77243005003516396]
[null,null,null,null,null,null,null,null,null,null,"12/5","あきらめなければ必ず道はある。必ず。",null,"豊田佐吉","実業家、発明家",0.50837860452474415]
[null,null,null,null,null,null,null,null,null,null,"12/6","雑草とは、ただ人に愛されていない花。","A weed is but an unloved flower.","エラ・ウィーラー・ウィルコックス","アメリカの女性作家、詩人",0.31438702558668774]
[null,null,null,null,null,null,null,null,null,null,"12/7","あなたの心が語りかけることだけをしなさい。","Only do what your heart tells you.","ダイアナ妃","イギリスチャールズ皇太子の元妃",0.70928109845772902]
[null,null,null,null,null,null,null,null,null,null,"12/8","忘れられることは、許されること。","Forgotten is forgiven.","スコット・フィッツジェラルド","アメリカの小説家",0.62111276689946748]
[null,null,null,null,null,null,null,null,null,null,"12/9","準備しておこう。チャンスはいつか訪れるものだ。","I will prepare and some day my chance will come.","エイブラハム・リンカーン","アメリカの第16代大統領",0.84679155109071425]
[null,null,null,null,null,null,null,null,null,null,"12/10","準備万端の人にチャンスが訪れることを幸運と呼ぶの。","Luck is a matter of preparation meeting opportunity.","オプラ・ウィンフリー","アメリカの女性テレビ司会者、女優",0.75200779329228118]
[null,null,null,null,null,null,null,null,null,null,"12/11","自分がカッコわりィと思うことをオレはやらねー",null,"坊屋春道","高橋ヒロシ『クローズ』",0.21202683445665615]
[null,null,null,null,null,null,null,null,null,null,"12/12","親が子供に教えなければならないのは「転ばない方法」ではなく、むしろ人間は転んでも何度だって立ち上がれるということじゃないか！？",null,"森田忍","羽海野チカ『ハチミツとクローバー』",0.10427154950386341]
[null,null,null,null,null,null,null,null,null,null,"12/13","おいしい食事を無駄にする人は、人生を無駄にしている。","You waste life when you waste good food.","キャサリン・アン・ポーター","アメリカの小説家",0.16182762719518973]
[null,null,null,null,null,null,null,null,null,null,"12/14","新聞の中で最も真実を伝えているのは広告だ。","The most truthful part of a newspaper is the advertisements.","トーマス・ジェファーソン","アメリカの第3代大統領",0.23623351024870498]
[null,null,null,null,null,null,null,null,null,null,"12/15","未来は美しい夢を信じる人のためにあります。","The future belongs to those who believe in the beauty of their dreams.","エレノア・ルーズベルト","アメリカのファーストレディ、人権活動家",0.88370675441631863]
[null,null,null,null,null,null,null,null,null,null,"12/16","もしもあなたが私にレッテルをはるなら、それは私の存在を否定することになる。","Once you label me you negate me.","キルケゴール","デンマークの哲学者、実存主義の創始者",0.86848616067882511]
[null,null,null,null,null,null,null,null,null,null,"12/17","もし諦め切れるんなら そんなもん夢じゃねえ",null,"南波日々人","小山宙哉『宇宙兄弟』",0.85700212490667516]
[null,null,null,null,null,null,null,null,null,null,"12/18","人を信じるということは己の期待を相手に勝手に押し付けることではない。リスクを共有する覚悟を持つことだ。",null,null,"夢枕獏×伊藤勢『荒野に獣慟哭す』",0.83275183670015285]
[null,null,null,null,null,null,null,null,null,null,"12/19","雨を感じられる人間もいるし、ただ濡れるだけの奴らもいる。","Some people feel the rain. Others just get wet.","ボブ・マーリー","ジャマイカのレゲエミュージシャン",0.45003610035018426]
[null,null,null,null,null,null,null,null,null,null,"12/20","おもしろき　こともなき世を　おもしろく",null,"高杉晋作","幕末の志士、長州藩士",0.87855551921915875]
[null,null,null,null,null,null,null,null,null,null,"12/21","今日という日は、残りの人生の最初の日である。","Often you have to rely on intuition.","チャールズ・ディードリッヒ","アメリカの薬物中毒患者救済機関の設立者",0.81993379259646082]
[null,null,null,null,null,null,null,null,null,null,"12/22","おまえの終わり方は、なんとなくフィニッシュだ！",null,"松岡修造","日本の元プロテニスプレーヤー",0.45100535769888994]
[null,null,null,null,null,null,null,null,null,null,"12/23","人生はいたって単純。競争なんて本当は存在しないし、勝たなきゃならないレースもない。",null,"スーザン・マザーズ","アメリカの女優",5.2495468897561515E-2]
[null,null,null,null,null,null,null,null,null,null,"12/24","優秀な芸術家は模倣し、偉大な芸術家は盗む。","Good artists copy, great artists steal.","パブロ・ピカソ","スペイン出身の画家、彫刻家",0.4625177258458032]
[null,null,null,null,null,null,null,null,null,null,"12/25","だれに対しても率直であれ。","Be candid with everyone.","ジャック・ウェルチ","アメリカの経営者",0.89146200609781834]
[null,null,null,null,null,null,null,null,null,null,"12/26","自分の内なるものも外なるものも、見ているものを変える必要はない。ただ見方を変えればいいのだ",null,"タデウス・ゴラス","アメリカの作家",0.94574932588444116]
[null,null,null,null,null,null,null,null,null,null,"12/27","人生から返ってくるのは、いつかあなたが投げた球",null,"斎藤茂太","精神科医・随筆家",0.44900398762912586]
[null,null,null,null,null,null,null,null,null,null,"12/28","できると思うからこそできるのだ。","They can because they think they can.","ウェルギリウス","古代ローマの詩人",0.99131543521203802]
[null,null,null,null,null,null,null,null,null,null,"12/29","自分で薪を割れ、二重に温まる。","Chop your own wood, and it will warm you twice.","ヘンリー・フォード","アメリカのフォード・モーター創業者",0.71696828623218767]
[null,null,null,null,null,null,null,null,null,null,"12/30","夢見ることができれば、それは実現できる。","Chop your own wood, and it will warm you twice.","ウォルト・ディズニー","アメリカのエンターテイナー",0.94370618470712919]
[null,null,null,null,null,null,null,null,null,null,"12/31","人生に失敗がないと人生に失敗する",null,"斎藤茂太","精神科医・随筆家",0.57777933153301786]
[null,null,null,null,null,null,null,null,null,null,null,"未来は現在と同じ材料でできている。","The future is made of the same stuff as the present.","シモーヌ・ヴェイユ","フランスの女性哲学者",0.74555940878610205]
[null,null,null,null,null,null,null,null,null,null,null,"人生において我々が囚われている鎖は、我々が生み出したものに他ならない。","We forge the chains we wear in life.","チャールズ・ディケンズ","イギリスの小説家",0.92094592276558374]
[null,null,null,null,null,null,null,null,null,null,null,"人生はロマン。自分は不幸だと嘆くのではなく、試練を与えられた物語の主人公だと思えば人生をエンジョイできる。",null,"美輪明宏","日本の歌手・演出家",0.12542785288189506]
[null,null,null,null,null,null,null,null,null,null,null,"間違いとは単に、物事を行うための別の方法なのよ。","A mistake is simply another way of doing things.","キャサリン・グラハム","ワシントン・ポスト社長",0.85324693302634946]
[null,null,null,null,null,null,null,null,null,null,null,"若いときには、たくさんバカなことをするものだよ。","When you are young, you do a lot of stupid things.","ペレ","ブラジルの元サッカー選手、サッカーの王様",0.44643836272339832]
[null,null,null,null,null,null,null,null,null,null,null,"ペンは魂の舌である。","The pen is the tongue of the soul.","セルバンテス","スペインの小説家『ドン・キホーテ』著者",0.86169642376816225]
[null,null,null,null,null,null,null,null,null,null,null,"運命の女神は勇者に味方する。","Fortune favors the bold.","ウェルギリウス","古代ローマの詩人",0.72284609066293182]
[null,null,null,null,null,null,null,null,null,null,null,"おしゃべりこそ、最後の逃げ場。","Talk is a refuge.","ゾラ・ニール・ハーストン","アメリカの黒人女性作家",0.10259380902180593]
[null,null,null,null,null,null,null,null,null,null,null,"ペンは剣よりも強し",null,"福沢諭吉","幕末から明治初期の中津藩士、啓蒙思想家、教育者",0.32417110253443115]
[null,null,null,null,null,null,null,null,null,null,null,"どうあろうと、明日という日がある。","After all, tomorrow is another day.","マーガレット・ミッチェル","アメリカの小説家『風と共に去りぬ』著者",0.30511388275423068]
[null,null,null,null,null,null,null,null,null,null,null,"明るい方へ　明るい方へ",null,"金子みすゞ","日本の女性童謡詩人",0.15590026811694035]
[null,null,null,null,null,null,null,null,null,null,null,"情けは+L342:O379人のためならず","※情けをかけるとまわりまわって自分に帰ってくる","日本のことわざ",null,0.48884025237548334]
[null,null,null,null,null,null,null,null,null,null,null,"お腹がすいているときにキスがしたい女なんていないわ。","Nobody wants to kiss when they are hungry.","ドロシー・ディックス","アメリカのジャーナリスト",0.38834410990783619]
[null,null,null,null,null,null,null,null,null,null,null,"答えは一つじゃなくてもいいんだ",null,"八軒勇吾","荒川弘『銀の匙 Silver Spoon』",1.6940974094110328E-2]
[null,null,null,null,null,null,null,null,null,null,null,"死ぬ覚悟ができていれば、人は自由に生きられる。",null,"ガンジー","インドの弁護士、宗教家、政治指導者",0.98369650643325324]
[null,null,null,null,null,null,null,null,null,null,null,"瞬間を生きる。いまだけなのよ。",null,"岡本敏子","岡本太郎の養女",0.11900417159136478]
[null,null,null,null,null,null,null,null,null,null,null,"僕らの人生は、僕らのアートなのさ。","Our life is our art.","ジョン・レノン","イギリスのミュージシャン",0.4221880156955774]
[null,null,null,null,null,null,null,null,null,null,null,"頂上を目指す途中で、自分を見失ってはいけない。","頂上を目指す途中で、自分を見失ってはいけない。","ジャック・ウェルチ","アメリカの経営者",0.12118594419067541]
[null,null,null,null,null,null,null,null,null,null,null,"漠然と日々を過ごすな。自分に足りないもの、必要なものを常に考えて行動せよ！",null,"鴨川源次郎","森川ジョージ『はじめの一歩』",{"$f":"RAND()","v":0.84125220824473479}]
[null,null,null,null,null,null,null,null,null,null,null,"来るものは何でも、必ず去っていく。","Whatever comes, This too shall pass away.","エラ・ウィーラー・ウィルコックス","アメリカの女性作家",0.53811138900889788]
[null,null,null,null,null,null,null,null,null,null,null,"なりたかった自分になるのに遅すぎるということはない。","It is never too late to be what you might have been.","ジョージ・エリオット","イギリスの女性作家",2.9187207228395073E-2]
[null,null,null,null,null,null,null,null,null,null,null,"失敗ではない。目的を果たす為の経過の内だ",null,"アドリアン・ルビンスキー","田中芳樹『銀河英雄伝説』",0.66863871607923608]
[null,null,null,null,null,null,null,null,null,null,null,"オレの未来は、毎朝起きた時にはじまる。","My future starts when I wake up every morning.","マイルス・デイヴィス","イギリスの哲学者",0.45394460246682422]
[null,null,null,null,null,null,null,null,null,null,null,"幸せであれ。しかし決して満足するな。","Be happy, but never satisfied.","ブルース・リー","香港の中国武術家、俳優",0.83568598820179496]
[null,null,null,null,null,null,null,null,null,null,null,"今日、私には夢がある。","I have a dream today!","キング牧師","アメリカの牧師、公民権運動の指導者",0.62501622122563483]
[null,null,null,null,null,null,null,null,null,null,null,"学んだときは教えなさい。手に入れたときは与えなさい。","When you learn, teach, when you get, give.","マヤ・アンジェロウ","アメリカの詩人、作家",0.63753217080626823]
[null,null,null,null,null,null,null,null,null,null,null,"失敗を知って乗り越えたモノなら それはいいモノだ",null,"南波六太","小山宙哉『宇宙兄弟』",0.66416757733348986]
[null,null,null,null,null,null,null,null,null,null,null,"絶えずあなたを何者かに変えようとする世界の中で、自分らしくあり続けること。それが最も素晴らしい異形である。",null,"エマーソン","アメリカの思想家",0.80368382285756179]
[null,null,null,null,null,null,null,null,null,null,null,"努力できる才能持っとる奴が天才やねん",null,"藤川則夫","森田まさのり 『べしゃり暮らし』",0.34147141267786052]
[null,null,null,null,null,null,null,null,null,null,null,"もっとやれば、もっとできる。","The more we do, the more we can do.","ウィリアム・ヘイズリット","イギリスの作家、批評家",0.90926178724873963]
[null,null,null,null,null,null,null,null,null,null,null,"青年は決して安全な株を買ってはならない。",null,"ジャン・コクトー","フランスの詩人",7.8663681150846987E-2]
[null,null,null,null,null,null,null,null,null,null,null,"仕事をこなすからこそ報酬が得られる。人生にショートカットなどない。",null,"マイケル・ジョーダン","アメリカの元バスケットボール選手",0.63005648343044285]
[null,null,null,null,null,null,null,null,null,null,null,"地獄とは他人のことだ。","Hell is other people.","サルトル","フランスの哲学者",0.37277837269566438]
[null,null,null,null,null,null,null,null,null,null,null,"本気でやった場合に限るよ 本気の失敗には価値がある",null,"南波六太","小山宙哉『宇宙兄弟』",0.26497680206287622]
[null,null,null,null,null,null,null,null,null,null,null,"行動する事は少しも恐れはしない。恐れるのは、ただ無為に時を過ごす事だけだ。","I never worry about action, but only inaction.","ウィンストン・チャーチル","イギリスの政治家",7.1177464416077196E-2]
[null,null,null,null,null,null,null,null,null,null,null,"圧力がなければ、ダイヤモンドは生まれない。","No pressure, no diamonds.","トーマス・カーライル","イギリスの思想家、歴史家",0.61099714441984188]
[null,null,null,null,null,null,null,null,null,null,null,"グーみたいな奴がいて チョキみたいな奴もいて パーみたいな奴もいる",null,"南波六太","小山宙哉『宇宙兄弟』",0.55960947565655361]
[null,null,null,null,null,null,null,null,null,null,null,"正直は最善の策である。","Honesty is the best policy.","セルバンテス","スペインの小説家『ドン・キホーテ』著者",0.74472124580744459]
[null,null,null,null,null,null,null,null,null,null,null,"友人を得る唯一の方法は、自分がその人の友人になることである。","The only way to have a friend is to be one.","エマーソン","アメリカの思想家、哲学者",0.51843715949620806]
[null,null,null,null,null,null,null,null,null,null,null,"人生の悲劇は、人は変わらないということです。","The tragedy of life is that people do not change.","アガサ・クリスティ","イギリスの推理作家",0.75834735265502073]
[null,null,null,null,null,null,null,null,null,null,null,"千の歓びも一つの苦しみに値しない。",null,"ミケランジェロ","イタリアのルネサンス期の芸術家",0.40386537795138744]
[null,null,null,null,null,null,null,null,null,null,null,"私は何も発明しない。再発見するだけだ。","I invent nothing, I rediscover.","ロダン","フランスの彫刻家『考える人』の作者",0.5127270225428805]
[null,null,null,null,null,null,null,null,null,null,null,"逆境の中で咲く花は、どの花よりも基調で美しい。",null,"ウォルト・ディズニー","アメリカのエンターテイナー",0.79142757892133475]
[null,null,null,null,null,null,null,null,null,null,null,"充実した一日が幸せな眠りをもたらすように、充実した一生は幸福な死をもたらす。",null,"レオナルド・ダ・ヴィンチ","イタリアの芸術家",0.29908798553823379]
[null,null,null,null,null,null,null,null,null,null,null,"沈黙は愚者たちの美徳である。","Silence is the virtue of fools.","フランシス・ベーコン","イギリスの哲学者",0.74164644842644933]
[null,null,null,null,null,null,null,null,null,null,null,"嘘は、生き続けることなどできない。","A lie cannot live.","キング牧師","アメリカの牧師、公民権運動の指導者",0.38541292679560002]
[null,null,null,null,null,null,null,null,null,null,null,"論理的になればなるほど、創造性は失われる。","The more you reason the less you create.","レイモンド・チャンドラー","アメリカのハードボイルド作家",0.8141835007333208]
[null,null,null,null,null,null,null,null,null,null,null,"雨を喜び、風を楽しみ。",null,"長嶋茂雄","日本の元プロ野球選手",0.46944208390445197]
[null,null,null,null,null,null,null,null,null,null,null,"道を選んだら、決してあきらめない。","Choose a road and stick to it.","キャサリン・ヘプバーン","アメリカの女優",0.63313583064652612]
[null,null,null,null,null,null,null,null,null,null,null,"シンプルさはすべてのエレガンスの鍵。","Simplicity is the keynote of all true elegance.","ココ・シャネル","フランスのファッションデザイナー",4.1070903152344074E-2]
[null,null,null,null,null,null,null,null,null,null,null,"キャリアではない。私の人生なんだ。",null,"スティーブ・ジョブズ","アメリカの実業家",0.45083227813895177]
[null,null,null,null,null,null,null,null,null,null,null,"知るは見るなり。",null,"ジョン・ロック","イギリスの哲学者",0.73674805714324199]
[null,null,null,null,null,null,null,null,null,null,null,"チャンスが二度も扉をたたくと思うな。","Do not suppose opportunity will knock twice at your door.","シャンフォール","フランスの劇作家、作家",0.9713791769370248]
[null,null,null,null,null,null,null,null,null,null,null,"真面目とはね、真剣勝負の意味だよ。",null,"夏目漱石","日本の小説家、評論家",0.16746659787971652]
[null,null,null,null,null,null,null,null,null,null,null,"世界ではなく、自分自身を征服せよ。","Conquer yourself rather than the world.","デカルト","フランスの哲学者、数学者",0.11489687251427327]
[null,null,null,null,null,null,null,null,null,null,null,"あったかいふとんでぐっすりねる！　こんな楽しいことがほかにあるか。",null,"野比のび太","藤子・F・不二雄『ドラえもん』",0.83269295796059339]
[null,null,null,null,null,null,null,null,null,null,null,"自らに勝つことこそ最も難しい勝利だ",null,"アリストテレス","古代ギリシアの哲学者",0.94877293342602897]
[null,null,null,null,null,null,null,null,null,null,null,"世の中に道は一つという事はない",null,"坂本龍馬","幕末の志士、土佐藩郷士",0.83456784434383191]
[null,null,null,null,null,null,null,null,null,null,null,"本人ができると思えばできる。できないと思えばできない。どちらにしてもその穂とが思ったことは正しい。",null,"ヘンリー・フォード","アメリカの実業家",0.14718108509021344]
[null,null,null,null,null,null,null,null,null,null,null,"失敗しなくちゃ、成功はしないわよ。",null,"ココ・シャネル","フランスのファッションデザイナー",0.46147924690945774]
[null,null,null,null,null,null,null,null,null,null,null,"不平を言わない。言い訳をしない。","Never complain. Never explain.","キャサリン・ヘプバーン","アメリカの女優",0.25439122723783836]
[null,null,null,null,null,null,null,null,null,null,null,"楽しんでやる苦労は、苦痛をいやすものだ。",null,"シェイクスピア","イギリスの劇作家",0.55929434104937337]
[null,null,null,null,null,null,null,null,null,null,null,"偏見は、判断を持たない意見である。","Prejudice is an opinion without judgment.","ヴォルテール","フランスの哲学者",0.62517201033047864]
[null,null,null,null,null,null,null,null,null,null,null,"森の分かれ道では人の通らぬ道を選ぼう。すべてが変わる。",null,"ロバート・フロスト","アメリカの詩人",0.44266790388353716]
[null,null,null,null,null,null,null,null,null,null,null,"君の魂の中にある英雄を放棄してはならぬ。",null,"ニーチェ","ドイツの哲学者、古典文献学者",0.31833724509005323]
[null,null,null,null,null,null,null,null,null,null,null,"目的を見つけよ。手段は後からついてくる。","Find purpose, the means will follow.","ガンジー","インドの弁護士、宗教家、政治指導者",0.83300619538019383]
[null,null,null,null,null,null,null,null,null,null,null,"正しいことをするとき、頃合いを見る必要はないのです。","The time is always right to do what is right.","キング牧師","アメリカの牧師、公民権運動の指導者",0.66507022199472476]
[null,null,null,null,null,null,null,null,null,null,null,"いちばんいけないのはじぶんなんかだめだと思いこむことだよ。",null,"野比のび太","藤子・F・不二雄『ドラえもん』",0.49922680911422979]
[null,null,null,null,null,null,null,null,null,null,null,"不運は人物を作り、幸運は怪物を作る。","Adversity makes men, and prosperity makes monsters.","ヴィクトル・ユーゴー","フランスのロマン主義の詩人、小説家",2.4622233654386205E-2]
[null,null,null,null,null,null,null,null,null,null,null,"強くなりたいではなく　強くありたい",null,"宮本武蔵","井上雄彦『バガボンド』",0.49018354578756207]
[null,null,null,null,null,null,null,null,null,null,null,"「いつの日か」は、決してやってこない。","One of these days is none of these days.","ヘンリー・ジョージ・ボーン","イギリスの出版業経営者",0.6267436965928036]
[null,null,null,null,null,null,null,null,null,null,null,"謙遜する必要はありませんよ。あなたはそれほど偉大ではないのだから。","Don’t be humble… you’re not that great.","ゴルダ・メイア","イスラエルの元女性首相",8.1171084207857791E-2]
[null,null,null,null,null,null,null,null,null,null,null,"雨の日には雨の中を　風の日には風の中を",null,"相田みつを","日本の詩人、書家",0.55847442567864769]
[null,null,null,null,null,null,null,null,null,null,null,"何を笑うかで人間がわかる。なんでも笑えば人間は変わる。",null,"斎藤茂太","精神科医・随筆家",0.9273428775277156]
[null,null,null,null,null,null,null,null,null,null,null,"挫折を経験した事がない者は、何も新しい事に挑戦した事が無いという事だ。",null,"アインシュタイン","理論物理学者",0.13090087452836108]
[null,null,null,null,null,null,null,null,null,null,null,"楽しいから笑うのではない。笑うから楽しいのだ。","We don’t laugh because we’re happy – we’re happy because we laugh.","ウィリアム・ジェームズ","アメリカの哲学者、心理学者",0.21852034684715393]
[null,null,null,null,null,null,null,null,null,null,null,"状況？何が状況だ。俺が状況を作るのだ。","Circumstances – what are circumstances? I make circumstances.","ナポレオン・ボナパルト","フランスの皇帝",5.1984503205019128E-2]
[null,null,null,null,null,null,null,null,null,null,null,"人生は楽ではない。そこが面白い。",null,"武者小路実篤","日本の小説家",0.91628390311304619]
[null,null,null,null,null,null,null,null,null,null,null,"すべては練習のなかにある。","Everything is practice.","ペレ","ブラジルの元サッカー選手、サッカーの王様",0.25057174348824129]
[null,null,null,null,null,null,null,null,null,null,null,"偉大さとは、未知の世界へとつながる道だ。","Greatness is a road leading towards the unknown.","シャルル・ド・ゴール","フランスの軍人",0.69980324118370263]
[null,null,null,null,null,null,null,null,null,null,null,"常識とは18歳までに身に着けた偏見のコレクションの事を言う。",null,"アインシュタイン","理論物理学者",6.9749002823758954E-2]
[null,null,null,null,null,null,null,null,null,null,null,"努力した者が 全て報われるとは限らん しかし！ 成功した者は 皆すべからく 努力しておる！！",null,"鴨川源次郎","森川ジョージ『はじめの一歩』",0.66824001251790544]
[null,null,null,null,null,null,null,null,null,null,null,"99回倒されても、100回目に立ち上がればよい。",null,"ゴッホ","オランダ出身のポスト印象派の画家",{"$f":"RAND()","v":0.44120797410704282}]
[null,null,null,null,null,null,null,null,null,null,null,"いまの僕には勢いがある",null,"松岡修造","日本の元プロテニスプレーヤー",0.87238243394689929]
[null,null,null,null,null,null,null,null,null,null,null,"生きている者とは、闘っている者だ。","Those who live are those who fight.","ヴィクトル・ユーゴー","フランスのロマン主義の詩人",0.17715425943717045]
[null,null,null,null,null,null,null,null,null,null,null,"毎日毎日の足跡がおのずから人生の答えを出す。きれいな足跡にはきれいな水がたまる",null,"相田みつを","日本の詩人・書家",0.85104497460032191]
[null,null,null,null,null,null,null,null,null,null,null,"シンプルさは究極の洗練である。","Simplicity is the ultimate sophistication.","レオナルド・ダ・ヴィンチ","イタリアのルネサンス期の芸術家",0.65242523257127139]
[null,null,null,null,null,null,null,null,null,null,null,"虹をみたければ、ちょっとやそっとの雨は我慢しなくちゃ。",null,"ドリー・パートン","アメリカのシンガーソングライター",0.71430644565385504]
[null,null,null,null,null,null,null,null,null,null,null,"あるがままにて、満足するもの万歳。",null,"武者小路実篤","日本の小説家",0.12260085231173445]
[null,null,null,null,null,null,null,null,null,null,null,"人に与えない者は、いずれ人から何も貰えなくなる。欲しがるばかりの奴は、結局何も持っていないのと同じ。",null,"愈史郎","吾峠呼世晴『鬼滅の刃』",0.35796227851968654]
[null,null,null,null,null,null,null,null,null,null,null,"考えろ。焦るな。絶対に思考を放棄するな。",null,"竈門炭治郎","吾峠呼世晴『鬼滅の刃』",0.21508732715755929]